Workbook

Sheet Instructions
P2: CDX Technologies Support
C3: Tract Demographic Report | P3: (973) 895-5542
P4: support@CDXTech.com
C7: This template will produce a summary report for the Tract CSV data files created with the following CDX Bulk Demographic Tools.
C9: Census Tract Demographics Batch Report
C11: If you haven't already done so, please enable macros for this Excel file. Please refer to our website
C12: for instructions on how to do this. You will have to close the file prior to following these instructions.
C14: Begin by pressing the "Get Started" button above. This will take you to the "Data" worksheet where you can import your CSV data.
C15: Press the "Import CSV Data" button to do this or cut and copy your data into the file making sure to match the correct column headings.
C16: You can then review the report data on the "Demographics", "Gender", "Race" and other tabs. A description of each of the
C17: demographic factors can be found on the "Definitions" tab.
C19: The data items that total Tract data such as population will only be accurate if your list of Tracts do not contain duplicates.
C20: After importing data, if the program finds duplicate Tracts you will be given the option to consolidate and weight results. The end report
C21: will be sorted by Tracts with the highest number of occurences first. This is useful in analyzing customer lists.
C23: The report name on the chart worksheets can be changed by updating cell L1 on the "Data" tab to reflect the nature of your Tract list.
C24: Use the File "Save As" option to save the updated template under a new name. This ensures the original template will remain unchanged.
C26: Note: This template works with Microsoft Excel 2010 and higher designed to be used for up to 100,000 rows of data. If you need
C27: to analyze more data or require additional customization, please email customsolutions@cdxtech.com or call (877) 239-8321.
C29: Copyright © 2021 Hughes Financial Services, Inc.

Sheet Data
C1: ="Zip Code Data for " & L1 -> Zip Code Data for addresstotract | K1: Report Name | L1: addresstotract | GM1: =SUM(GM3:GT13) -> 34881
B2: Your Entry | C2: Tract Number | D2: Census Tract | E2: Census Block | F2: Occurences | G2: County | H2: State | I2: AgeMedian | J2: Age0to4 | K2: Age5to9 | L2: Age10to14 | M2: Age15to17 | N2: Age18to20 | O2: Age21to24 | P2: Age25to34 | Q2: Age35to44 | R2: Age45to54 | S2: Age55to61 | T2: Age62to64 | U2: Age65to74 | V2: Age75to84 | W2: Age85Plus | X2: AgeMedianFemale | Y2: AgeFemale0to4 | Z2: AgeFemale5to9 | AA2: AgeFemale10to14 | AB2: AgeFemale15to17 | AC2: AgeFemale18to20 | AD2: AgeFemale21to24 | AE2: AgeFemale25to34 | AF2: AgeFemale35to44 | AG2: AgeFemale45to54 | AH2: AgeFemale55to61 | AI2: AgeFemale62to64 | AJ2: AgeFemale65to74 | AK2: AgeFemale75to84 | AL2: AgeFemale85Plus | AM2: AgeMedianMale | AN2: AgeMale0to4 | AO2: AgeMale5to9 | AP2: AgeMale10to14 | AQ2: AgeMale15to17 | AR2: AgeMale18to20 | AS2: AgeMale21to24 | AT2: AgeMale25to34 | AU2: AgeMale35to44 | AV2: AgeMale45to54 | AW2: AgeMale55to61 | AX2: AgeMale62to64 | AY2: AgeMale65to74 | AZ2: AgeMale75to84 | BA2: AgeMale85Plus | BB2: EarningsPopulation | BC2: EarningsMedian | BD2: EarningsLessthan10K | BE2: Earnings10to19K | BF2: Earnings20to29K | BG2: Earnings30to39K | BH2: Earnings40to49K | BI2: Earnings50to74K | BJ2: Earnings75to99K | BK2: Earnings100KPlus | BL2: EarningsFemalePopulation | BM2: EarningsMedianFemale | BN2: EarningsFemaleLessthan10K | BO2: EarningsFemale10to19K | BP2: EarningsFemale20to29K | BQ2: EarningsFemale30to39K | BR2: EarningsFemale40to49K | BS2: EarningsFemale50to74K | BT2: EarningsFemale75to99K | BU2: EarningsFemale100KPlus | BV2: EarningsMalePopulation | BW2: EarningsMedianMale | BX2: EarningsMaleLessthan10K | BY2: EarningsMale10to19K | BZ2: EarningsMale20to29K | CA2: EarningsMale30to39K | CB2: EarningsMale40to49K | CC2: EarningsMale50to74K | CD2: EarningsMale75to99K | CE2: EarningsMale100KPlus | CF2: EducationAttainPopulation25PlusYears | CG2: EducationAttainNoSchooling | CH2: EducationAttainNurserytoGrade8 | CI2: EducationAttainSomeHighSchool | CJ2: EducationAttainHighSchoolGrad | CK2: EducationAttainSomeCollege | CL2: EducationAttainAssociateDegree | CM2: EducationAttainBachelorsDegree | CN2: EducationAttainAdvancedDegree | CO2: EducationAttainPopulationFemale25PlusYears | CP2: EducationAttainFemaleNoSchooling | CQ2: EducationAttainFemaleNurserytoGrade8 | CR2: EducationAttainFemaleSomeHighSchool | CS2: EducationAttainFemaleHighSchoolGrad | CT2: EducationAttainFemaleSomeCollege | CU2: EducationAttainFemaleAssociateDegree | CV2: EducationAttainFemaleBachelorsDegree | CW2: EducationAttainFemaleAdvancedDegree | CX2: EducationAttainPopulationMale25PlusYears | CY2: EducationAttainMaleNoSchooling | CZ2: EducationAttainMaleNurserytoGrade8 | DA2: EducationAttainMaleSomeHighSchool | DB2: EducationAttainMaleHighSchoolGrad | DC2: EducationAttainMaleSomeCollege | DD2: EducationAttainMaleAssociateDegree | DE2: EducationAttainMaleBachelorsDegree | DF2: EducationAttainMaleAdvancedDegree | DG2: HouseholdsTotal | DH2: HouseholdIncome0to24K | DI2: HouseholdIncome25to49K | DJ2: HouseholdIncome50to74K | DK2: HouseholdIncome75to99K | DL2: HouseholdIncome100to149K | DM2: HouseholdIncome150to199K | DN2: HouseholdIncome200KPlus | DO2: HouseholdIncomeMedian | DP2: HouseholdIncomeMedianunder25years | DQ2: HouseholdIncomeMedian25to44years | DR2: HouseholdIncomeMedian45to64years | DS2: HouseholdIncomeMedian65yearsandover | DT2: HouseholdsOwnerOccuppied | DU2: HouseholdSizeOwnerOccupied1Person | DV2: HouseholdSizeOwnerOccupied2Person | DW2: HouseholdSizeOwnerOccupied3Person | DX2: HouseholdSizeOwnerOccupied4Person | DY2: HouseholdSizeOwnerOccupied5Person | DZ2: HouseholdSizeOwnerOccupied6Person | EA2: HouseholdSizeOwnerOccupied7PlusPerson | EB2: HouseholdsRenterOccupied | EC2: HouseholdSizeRenterOccupied1Person | ED2: HouseholdSizeRenterOccupied2Person | EE2: HouseholdSizeRenterOccupied3Person | EF2: HouseholdSizeRenterOccupied4Person | EG2: HouseholdSizeRenterOccupied5Person | EH2: HouseholdSizeRenterOccupied6Person | EI2: HouseholdSizeRenterOccupied7PlusPerson | EJ2: HouseholdSizeAverage | EK2: HouseholdSizeAverageOwnerOccupied | EL2: HouseholdSizeAverageRenterOccupied | EM2: HousingUnitswithMortgage | EN2: HousingUnitswithoutMortgage | EO2: HousingValueMedian | EP2: HousingValueLessthan50K | EQ2: HousingValue50to99K | ER2: HousingValue100to149K | ES2: HousingValue150to199K | ET2: HousingValue200to299K | EU2: HousingValue300to399K | EV2: HousingValue400to499K | EW2: HousingValue500to749K | EX2: HousingValue750to999K | EY2: HousingValue1MMPlus | EZ2: MaritalStatusPopulation15PlusYears | FA2: MaritalStatusNeverMarried | FB2: MaritalStatusMarriedSpousePresent | FC2: MaritalStatusMarriedSpouseAbsent | FD2: MaritalStatusDivorced | FE2: MaritalStatusWidowed | FF2: MaritalStatusPopulationFemale15PlusYears | FG2: MaritalStatusFemaleNeverMarried | FH2: MaritalStatusFemaleMarriedSpousePresent | FI2: MaritalStatusFemaleMarriedSpouseAbsent | FJ2: MaritalStatusFemaleDivorced | FK2: MaritalStatusFemaleWidowed | FL2: MaritalStatusPopulationMale15PlusYears | FM2: MaritalStatusMaleNeverMarried | FN2: MaritalStatusMaleMarriedSpousePresent | FO2: MaritalStatusMaleMarriedSpouseAbsent | FP2: MaritalStatusMaleDivorced | FQ2: MaritalStatusMaleWidowed | FR2: Population | FS2: PopulationFemale | FT2: PopulationMale | FU2: PopulationHispanic | FV2: PopulationNonHispanic | FW2: RaceAsian | FX2: RaceBlack | FY2: RaceHawaiian | FZ2: RaceIndian | GA2: RaceOther | GB2: RaceTwoOrmore | GC2: RaceWhite | GD2: RentGrossCashLessthan250 | GE2: RentGrossCash250to499 | GF2: RentGrossCash500to749 | GG2: RentGrossCash750to999 | GH2: RentGrossCash1000to1249 | GI2: RentGrossCash1250to1499 | GJ2: RentGrossCash1500to1999 | GK2: RentGrossCash2000Plus | GL2: RentGrossNoCash | GM2: SchoolEnrollPreschool | GN2: SchoolEnrollKindergarten | GO2: SchoolEnrollGrades1to4 | GP2: SchoolEnrollGrades5to8 | GQ2: SchoolEnrollGrades9to12 | GR2: SchoolEnrollCollege | GS2: SchoolEnrollGradSchool | GT2: SchoolEnrollNotEnrolled | GU2: SchoolEnrollFemalePreschool | GV2: SchoolEnrollFemaleKindergarten | GW2: SchoolEnrollFemaleGrades1to4 | GX2: SchoolEnrollFemaleGrades5to8 | GY2: SchoolEnrollFemaleGrades9to12 | GZ2: SchoolEnrollFemaleCollege | HA2: SchoolEnrollFemaleGradSchool | HB2: SchoolEnrollFemaleNotEnrolled | HC2: SchoolEnrollMalePreschool | HD2: SchoolEnrollMaleKindergarten | HE2: SchoolEnrollMaleGrades1to4 | HF2: SchoolEnrollMaleGrades5to8 | HG2: SchoolEnrollMaleGrades9to12 | HH2: SchoolEnrollMaleCollege | HI2: SchoolEnrollMaleGradSchool | HJ2: SchoolEnrollMaleNotEnrolled
B3: 5000 Richard Arrington Jr Blvd N;Birmingham, AL | C3: 3 | D3: 01073000300 | E3: 01073000300013 | F3: 1 | G3: Jefferson County | H3: AL | I3: 34.4 | J3: 115 | K3: 203 | L3: 45 | M3: 70 | N3: 48 | O3: 48 | P3: 401 | Q3: 238 | R3: 235 | S3: 111 | T3: 64 | U3: 112 | V3: 120 | W3: 9 | X3: 36.6 | Y3: 51 | Z3: 80 | AA3: 8 | AB3: 70 | AC3: 12 | AD3: 21 | AE3: 164 | AF3: 69 | AG3: 137 | AH3: 66 | AI3: 64 | AJ3: 59 | AK3: 43 | AL3: 9 | AM3: 30.9 | AN3: 64 | AO3: 123 | AP3: 37 | AQ3: 0 | AR3: 36 | AS3: 27 | AT3: 237 | AU3: 169 | AV3: 98 | AW3: 45 | AX3: 0 | AY3: 53 | AZ3: 77 | BA3: 0 | BB3: 875 | BC3: 17231 | BD3: 201 | BE3: 335 | BF3: 146 | BG3: 12 | BH3: 51 | BI3: 116 | BJ3: 14 | BK3: 0 | BL3: 432 | BM3: 15636 | BN3: 146 | BO3: 145 | BP3: 132 | BQ3: 0 | BR3: 0 | BS3: 9 | BT3: 0 | BU3: 0 | BV3: 443 | BW3: 19004 | BX3: 55 | BY3: 190 | BZ3: 14 | CA3: 12 | CB3: 51 | CC3: 107 | CD3: 14 | CE3: 0 | CF3: 1290 | CG3: 13 | CH3: 22 | CI3: 300 | CJ3: 470 | CK3: 368 | CL3: 48 | CM3: 22 | CN3: 47 | CO3: 611 | CP3: 0 | CQ3: 7 | CR3: 88 | CS3: 220 | CT3: 218 | CU3: 48 | CV3: 7 | CW3: 23 | CX3: 679 | CY3: 13 | CZ3: 15 | DA3: 212 | DB3: 250 | DC3: 150 | DD3: 0 | DE3: 15 | DF3: 24 | DG3: 757 | DH3: 460 | DI3: 85 | DJ3: 178 | DK3: 9 | DL3: 14 | DM3: 0 | DN3: 11 | DO3: 20875 | DP3: 0 | DQ3: 20066 | DR3: 21722 | DS3: 19063 | DT3: 136 | DU3: 58 | DV3: 39 | DW3: 19 | DX3: 20 | DY3: 0 | DZ3: 0 | EA3: 0 | EB3: 621 | EC3: 303 | ED3: 93 | EE3: 117 | EF3: 65 | EG3: 43 | EH3: 0 | EI3: 0 | EJ3: 2.27 | EK3: 2.11 | EL3: 2.3 | EM3: 16 | EN3: 120 | EO3: 47000 | EP3: 77 | EQ3: 50 | ER3: 0 | ES3: 9 | ET3: 0 | EU3: 0 | EV3: 0 | EW3: 0 | EX3: 0 | EY3: 0 | EZ3: 1456 | FA3: 913 | FB3: 132 | FC3: 110 | FD3: 292 | FE3: 9 | FF3: 714 | FG3: 410 | FH3: 65 | FI3: 88 | FJ3: 142 | FK3: 9 | FL3: 742 | FM3: 503 | FN3: 67 | FO3: 22 | FP3: 150 | FQ3: 0 | FR3: 1819 | FS3: 853 | FT3: 966 | FU3: 212 | FV3: 1607 | FW3: 0 | FX3: 1419 | FY3: 0 | FZ3: 0 | GA3: 121 | GB3: 24 | GC3: 255 | GD3: 31 | GE3: 63 | GF3: 198 | GG3: 262 | GH3: 21 | GI3: 11 | GJ3: 0 | GK3: 0 | GL3: 35 | GM3: 24 | GN3: 58 | GO3: 98 | GP3: 55 | GQ3: 48 | GR3: 22 | GS3: 15 | GT3: 1404 | GU3: 0 | GV3: 52 | GW3: 37 | GX3: 18 | GY3: 36 | GZ3: 22 | HA3: 0 | HB3: 646 | HC3: 24 | HD3: 6 | HE3: 61 | HF3: 37 | HG3: 12 | HH3: 0 | HI3: 15 | HJ3: 758
B4: 7941 Crestwood Blvd;Birmingham, Alabama | C4: 56 | D4: 01073005600 | E4: 01073005600007 | F4: 1 | G4: Jefferson County | H4: AL | I4: 36.4 | J4: 232 | K4: 122 | L4: 124 | M4: 52 | N4: 55 | O4: 298 | P4: 1430 | Q4: 669 | R4: 273 | S4: 399 | T4: 89 | U4: 302 | V4: 286 | W4: 456 | X4: 34.2 | Y4: 164 | Z4: 46 | AA4: 107 | AB4: 52 | AC4: 37 | AD4: 279 | AE4: 834 | AF4: 248 | AG4: 149 | AH4: 149 | AI4: 32 | AJ4: 211 | AK4: 197 | AL4: 432 | AM4: 37.6 | AN4: 68 | AO4: 76 | AP4: 17 | AQ4: 0 | AR4: 18 | AS4: 19 | AT4: 596 | AU4: 421 | AV4: 124 | AW4: 250 | AX4: 57 | AY4: 91 | AZ4: 89 | BA4: 24 | BB4: 2964 | BC4: 43787 | BD4: 325 | BE4: 232 | BF4: 341 | BG4: 404 | BH4: 333 | BI4: 737 | BJ4: 364 | BK4: 228 | BL4: 1548 | BM4: 36282 | BN4: 218 | BO4: 176 | BP4: 206 | BQ4: 193 | BR4: 157 | BS4: 342 | BT4: 142 | BU4: 114 | BV4: 1416 | BW4: 50553 | BX4: 107 | BY4: 56 | BZ4: 135 | CA4: 211 | CB4: 176 | CC4: 395 | CD4: 222 | CE4: 114 | CF4: 3904 | CG4: 16 | CH4: 95 | CI4: 116 | CJ4: 769 | CK4: 411 | CL4: 212 | CM4: 1410 | CN4: 875 | CO4: 2252 | CP4: 0 | CQ4: 75 | CR4: 46 | CS4: 454 | CT4: 238 | CU4: 133 | CV4: 804 | CW4: 502 | CX4: 1652 | CY4: 16 | CZ4: 20 | DA4: 70 | DB4: 315 | DC4: 173 | DD4: 79 | DE4: 606 | DF4: 373 | DG4: 2306 | DH4: 325 | DI4: 643 | DJ4: 367 | DK4: 350 | DL4: 365 | DM4: 175 | DN4: 81 | DO4: 54913 | DP4: 0 | DQ4: 82269 | DR4: 70640 | DS4: 32589 | DT4: 1315 | DU4: 552 | DV4: 601 | DW4: 119 | DX4: 43 | DY4: 0 | DZ4: 0 | EA4: 0 | EB4: 991 | EC4: 406 | ED4: 361 | EE4: 104 | EF4: 75 | EG4: 45 | EH4: 0 | EI4: 0 | EJ4: 1.91 | EK4: 1.79 | EL4: 2.08 | EM4: 926 | EN4: 389 | EO4: 230000 | EP4: 59 | EQ4: 0 | ER4: 204 | ES4: 204 | ET4: 623 | EU4: 225 | EV4: 0 | EW4: 0 | EX4: 0 | EY4: 0 | EZ4: 4309 | FA4: 1295 | FB4: 1829 | FC4: 104 | FD4: 570 | FE4: 511 | FF4: 2620 | FG4: 847 | FH4: 915 | FI4: 46 | FJ4: 318 | FK4: 494 | FL4: 1689 | FM4: 448 | FN4: 914 | FO4: 58 | FP4: 252 | FQ4: 17 | FR4: 4787 | FS4: 2937 | FT4: 1850 | FU4: 454 | FV4: 4333 | FW4: 0 | FX4: 312 | FY4: 0 | FZ4: 0 | GA4: 331 | GB4: 0 | GC4: 4144 | GD4: 20 | GE4: 0 | GF4: 123 | GG4: 154 | GH4: 101 | GI4: 278 | GJ4: 218 | GK4: 56 | GL4: 41 | GM4: 32 | GN4: 0 | GO4: 168 | GP4: 78 | GQ4: 82 | GR4: 48 | GS4: 264 | GT4: 3943 | GU4: 32 | GV4: 0 | GW4: 92 | GX4: 61 | GY4: 82 | GZ4: 36 | HA4: 151 | HB4: 2379 | HC4: 0 | HD4: 0 | HE4: 76 | HF4: 17 | HG4: 0 | HH4: 12 | HI4: 113 | HJ4: 1564
B5: 2000 Big M Blvd;Clanton, AL | C5: 602 | D5: 01021060200 | E5: 01021060200102 | F5: 1 | G5: Chilton County | H5: AL | I5: 41.2 | J5: 156 | K5: 147 | L5: 109 | M5: 156 | N5: 118 | O5: 93 | P5: 326 | Q5: 364 | R5: 311 | S5: 329 | T5: 105 | U5: 255 | V5: 218 | W5: 69 | X5: 44 | Y5: 27 | Z5: 82 | AA5: 25 | AB5: 86 | AC5: 78 | AD5: 52 | AE5: 193 | AF5: 178 | AG5: 165 | AH5: 174 | AI5: 76 | AJ5: 113 | AK5: 121 | AL5: 29 | AM5: 40.4 | AN5: 129 | AO5: 65 | AP5: 84 | AQ5: 70 | AR5: 40 | AS5: 41 | AT5: 133 | AU5: 186 | AV5: 146 | AW5: 155 | AX5: 29 | AY5: 142 | AZ5: 97 | BA5: 40 | BB5: 1246 | BC5: 33523 | BD5: 233 | BE5: 143 | BF5: 143 | BG5: 195 | BH5: 125 | BI5: 156 | BJ5: 163 | BK5: 88 | BL5: 581 | BM5: 24434 | BN5: 133 | BO5: 92 | BP5: 109 | BQ5: 134 | BR5: 26 | BS5: 79 | BT5: 0 | BU5: 8 | BV5: 665 | BW5: 46595 | BX5: 100 | BY5: 51 | BZ5: 34 | CA5: 61 | CB5: 99 | CC5: 77 | CD5: 163 | CE5: 80 | CF5: 1977 | CG5: 13 | CH5: 66 | CI5: 275 | CJ5: 759 | CK5: 303 | CL5: 206 | CM5: 265 | CN5: 90 | CO5: 1049 | CP5: 0 | CQ5: 41 | CR5: 100 | CS5: 430 | CT5: 146 | CU5: 127 | CV5: 154 | CW5: 51 | CX5: 928 | CY5: 13 | CZ5: 25 | DA5: 175 | DB5: 329 | DC5: 157 | DD5: 79 | DE5: 111 | DF5: 39 | DG5: 1147 | DH5: 243 | DI5: 210 | DJ5: 274 | DK5: 206 | DL5: 166 | DM5: 35 | DN5: 13 | DO5: 53997 | DP5: 0 | DQ5: 54688 | DR5: 89511 | DS5: 36477 | DT5: 939 | DU5: 219 | DV5: 478 | DW5: 167 | DX5: 45 | DY5: 18 | DZ5: 12 | EA5: 0 | EB5: 208 | EC5: 27 | ED5: 51 | EE5: 104 | EF5: 14 | EG5: 12 | EH5: 0 | EI5: 0 | EJ5: 2.4 | EK5: 2.29 | EL5: 2.93 | EM5: 341 | EN5: 598 | EO5: 138000 | EP5: 185 | EQ5: 150 | ER5: 186 | ES5: 133 | ET5: 152 | EU5: 90 | EV5: 39 | EW5: 0 | EX5: 0 | EY5: 4 | EZ5: 2344 | FA5: 554 | FB5: 1253 | FC5: 54 | FD5: 284 | FE5: 199 | FF5: 1265 | FG5: 249 | FH5: 647 | FI5: 34 | FJ5: 199 | FK5: 136 | FL5: 1079 | FM5: 305 | FN5: 606 | FO5: 20 | FP5: 85 | FQ5: 63 | FR5: 2756 | FS5: 1399 | FT5: 1357 | FU5: 55 | FV5: 2701 | FW5: 0 | FX5: 7 | FY5: 0 | FZ5: 7 | GA5: 55 | GB5: 0 | GC5: 2687 | GD5: 0 | GE5: 9 | GF5: 41 | GG5: 71 | GH5: 27 | GI5: 0 | GJ5: 0 | GK5: 0 | GL5: 60 | GM5: 14 | GN5: 54 | GO5: 61 | GP5: 139 | GQ5: 126 | GR5: 141 | GS5: 0 | GT5: 2092 | GU5: 0 | GV5: 33 | GW5: 49 | GX5: 17 | GY5: 94 | GZ5: 66 | HA5: 0 | HB5: 1113 | HC5: 14 | HD5: 21 | HE5: 12 | HF5: 122 | HG5: 32 | HH5: 75 | HI5: 0 | HJ5: 979
B6: 631 E Barbour St;Eufaula, AL | C6: 9509 | D6: 01005950900 | E6: 01005950900003 | F6: 1 | G6: Barbour County | H6: AL | I6: 33.1 | J6: 207 | K6: 427 | L6: 253 | M6: 162 | N6: 306 | O6: 62 | P6: 713 | Q6: 458 | R6: 436 | S6: 245 | T6: 160 | U6: 266 | V6: 148 | W6: 38 | X6: 36.8 | Y6: 127 | Z6: 221 | AA6: 70 | AB6: 45 | AC6: 62 | AD6: 37 | AE6: 359 | AF6: 280 | AG6: 228 | AH6: 169 | AI6: 59 | AJ6: 161 | AK6: 92 | AL6: 24 | AM6: 28 | AN6: 80 | AO6: 206 | AP6: 183 | AQ6: 117 | AR6: 244 | AS6: 25 | AT6: 354 | AU6: 178 | AV6: 208 | AW6: 76 | AX6: 101 | AY6: 105 | AZ6: 56 | BA6: 14 | BB6: 1551 | BC6: 24947 | BD6: 364 | BE6: 250 | BF6: 250 | BG6: 219 | BH6: 137 | BI6: 145 | BJ6: 142 | BK6: 44 | BL6: 691 | BM6: 23433 | BN6: 136 | BO6: 146 | BP6: 144 | BQ6: 75 | BR6: 90 | BS6: 68 | BT6: 32 | BU6: 0 | BV6: 860 | BW6: 29167 | BX6: 228 | BY6: 104 | BZ6: 106 | CA6: 144 | CB6: 47 | CC6: 77 | CD6: 110 | CE6: 44 | CF6: 2464 | CG6: 41 | CH6: 158 | CI6: 386 | CJ6: 882 | CK6: 515 | CL6: 233 | CM6: 189 | CN6: 60 | CO6: 1372 | CP6: 8 | CQ6: 110 | CR6: 169 | CS6: 435 | CT6: 361 | CU6: 158 | CV6: 93 | CW6: 38 | CX6: 1092 | CY6: 33 | CZ6: 48 | DA6: 217 | DB6: 447 | DC6: 154 | DD6: 75 | DE6: 96 | DF6: 22 | DG6: 1600 | DH6: 785 | DI6: 423 | DJ6: 119 | DK6: 154 | DL6: 94 | DM6: 19 | DN6: 6 | DO6: 25446 | DP6: 0 | DQ6: 22283 | DR6: 0 | DS6: 22955 | DT6: 613 | DU6: 151 | DV6: 284 | DW6: 115 | DX6: 43 | DY6: 20 | DZ6: 0 | EA6: 0 | EB6: 987 | EC6: 445 | ED6: 77 | EE6: 192 | EF6: 202 | EG6: 37 | EH6: 32 | EI6: 2 | EJ6: 2.43 | EK6: 2.37 | EL6: 2.46 | EM6: 385 | EN6: 228 | EO6: 111400 | EP6: 15 | EQ6: 250 | ER6: 152 | ES6: 97 | ET6: 68 | EU6: 8 | EV6: 9 | EW6: 14 | EX6: 0 | EY6: 0 | EZ6: 2994 | FA6: 1307 | FB6: 1035 | FC6: 148 | FD6: 302 | FE6: 202 | FF6: 1516 | FG6: 625 | FH6: 504 | FI6: 47 | FJ6: 146 | FK6: 194 | FL6: 1478 | FM6: 682 | FN6: 531 | FO6: 101 | FP6: 156 | FQ6: 8 | FR6: 3881 | FS6: 1934 | FT6: 1947 | FU6: 421 | FV6: 3460 | FW6: 27 | FX6: 2121 | FY6: 0 | FZ6: 9 | GA6: 414 | GB6: 78 | GC6: 1232 | GD6: 104 | GE6: 342 | GF6: 349 | GG6: 124 | GH6: 34 | GI6: 3 | GJ6: 0 | GK6: 0 | GL6: 31 | GM6: 19 | GN6: 55 | GO6: 360 | GP6: 200 | GQ6: 329 | GR6: 121 | GS6: 23 | GT6: 2606 | GU6: 6 | GV6: 43 | GW6: 152 | GX6: 70 | GY6: 88 | GZ6: 61 | HA6: 23 | HB6: 1387 | HC6: 13 | HD6: 12 | HE6: 208 | HF6: 130 | HG6: 241 | HH6: 60 | HI6: 0 | HJ6: 1219
B7: 1101 6th Ave NE;Decatur, AL | C7: 4 | D7: 01103000400 | E7: 01103000400012 | F7: 1 | G7: Morgan County | H7: AL | I7: 40.3 | J7: 128 | K7: 242 | L7: 218 | M7: 127 | N7: 90 | O7: 214 | P7: 422 | Q7: 769 | R7: 501 | S7: 402 | T7: 186 | U7: 370 | V7: 190 | W7: 61 | X7: 41.5 | Y7: 57 | Z7: 129 | AA7: 54 | AB7: 109 | AC7: 45 | AD7: 109 | AE7: 203 | AF7: 329 | AG7: 247 | AH7: 193 | AI7: 105 | AJ7: 197 | AK7: 116 | AL7: 61 | AM7: 38.9 | AN7: 71 | AO7: 113 | AP7: 164 | AQ7: 18 | AR7: 45 | AS7: 105 | AT7: 219 | AU7: 440 | AV7: 254 | AW7: 209 | AX7: 81 | AY7: 173 | AZ7: 74 | BA7: 0 | BB7: 2045 | BC7: 30853 | BD7: 349 | BE7: 351 | BF7: 256 | BG7: 397 | BH7: 210 | BI7: 263 | BJ7: 138 | BK7: 81 | BL7: 952 | BM7: 27065 | BN7: 213 | BO7: 172 | BP7: 142 | BQ7: 164 | BR7: 121 | BS7: 89 | BT7: 47 | BU7: 4 | BV7: 1093 | BW7: 32209 | BX7: 136 | BY7: 179 | BZ7: 114 | CA7: 233 | CB7: 89 | CC7: 174 | CD7: 91 | CE7: 77 | CF7: 2901 | CG7: 21 | CH7: 226 | CI7: 369 | CJ7: 719 | CK7: 493 | CL7: 290 | CM7: 570 | CN7: 213 | CO7: 1451 | CP7: 0 | CQ7: 113 | CR7: 137 | CS7: 391 | CT7: 257 | CU7: 198 | CV7: 243 | CW7: 112 | CX7: 1450 | CY7: 21 | CZ7: 113 | DA7: 232 | DB7: 328 | DC7: 236 | DD7: 92 | DE7: 327 | DF7: 101 | DG7: 1570 | DH7: 348 | DI7: 502 | DJ7: 399 | DK7: 84 | DL7: 150 | DM7: 43 | DN7: 44 | DO7: 45349 | DP7: 35208 | DQ7: 60500 | DR7: 51389 | DS7: 22389 | DT7: 1016 | DU7: 310 | DV7: 411 | DW7: 176 | DX7: 69 | DY7: 50 | DZ7: 0 | EA7: 0 | EB7: 554 | EC7: 307 | ED7: 121 | EE7: 52 | EF7: 50 | EG7: 20 | EH7: 0 | EI7: 4 | EJ7: 2.15 | EK7: 2.22 | EL7: 2.01 | EM7: 650 | EN7: 366 | EO7: 135400 | EP7: 62 | EQ7: 333 | ER7: 191 | ES7: 207 | ET7: 161 | EU7: 40 | EV7: 15 | EW7: 0 | EX7: 7 | EY7: 0 | EZ7: 3332 | FA7: 1004 | FB7: 1300 | FC7: 219 | FD7: 555 | FE7: 254 | FF7: 1714 | FG7: 452 | FH7: 637 | FI7: 75 | FJ7: 360 | FK7: 190 | FL7: 1618 | FM7: 552 | FN7: 663 | FO7: 144 | FP7: 195 | FQ7: 64 | FR7: 3920 | FS7: 1954 | FT7: 1966 | FU7: 455 | FV7: 3465 | FW7: 34 | FX7: 661 | FY7: 0 | FZ7: 0 | GA7: 104 | GB7: 21 | GC7: 3100 | GD7: 43 | GE7: 117 | GF7: 235 | GG7: 55 | GH7: 31 | GI7: 0 | GJ7: 33 | GK7: 14 | GL7: 26 | GM7: 37 | GN7: 31 | GO7: 218 | GP7: 185 | GQ7: 134 | GR7: 118 | GS7: 57 | GT7: 3053 | GU7: 14 | GV7: 31 | GW7: 131 | GX7: 21 | GY7: 110 | GZ7: 100 | HA7: 31 | HB7: 1473 | HC7: 23 | HD7: 0 | HE7: 87 | HF7: 164 | HG7: 24 | HH7: 18 | HI7: 26 | HJ7: 1580
B8: 151 Sessions Ln;Evergreen, AL | C8: 9605 | D8: 01035960500 | E8: 01035960500059 | F8: 1 | G8: Conecuh County | H8: AL | I8: 49.2 | J8: 62 | K8: 97 | L8: 51 | M8: 30 | N8: 71 | O8: 113 | P8: 148 | Q8: 150 | R8: 287 | S8: 261 | T8: 26 | U8: 182 | V8: 83 | W8: 83 | X8: 49.9 | Y8: 48 | Z8: 35 | AA8: 18 | AB8: 18 | AC8: 34 | AD8: 0 | AE8: 94 | AF8: 106 | AG8: 147 | AH8: 135 | AI8: 20 | AJ8: 114 | AK8: 39 | AL8: 62 | AM8: 48.4 | AN8: 14 | AO8: 62 | AP8: 33 | AQ8: 12 | AR8: 37 | AS8: 113 | AT8: 54 | AU8: 44 | AV8: 140 | AW8: 126 | AX8: 6 | AY8: 68 | AZ8: 44 | BA8: 21 | BB8: 696 | BC8: 20493 | BD8: 237 | BE8: 96 | BF8: 95 | BG8: 90 | BH8: 42 | BI8: 105 | BJ8: 31 | BK8: 0 | BL8: 336 | BM8: 19630 | BN8: 104 | BO8: 68 | BP8: 42 | BQ8: 31 | BR8: 20 | BS8: 59 | BT8: 12 | BU8: 0 | BV8: 360 | BW8: 21397 | BX8: 133 | BY8: 28 | BZ8: 53 | CA8: 59 | CB8: 22 | CC8: 46 | CD8: 19 | CE8: 0 | CF8: 1220 | CG8: 17 | CH8: 32 | CI8: 126 | CJ8: 606 | CK8: 276 | CL8: 51 | CM8: 89 | CN8: 23 | CO8: 717 | CP8: 0 | CQ8: 22 | CR8: 76 | CS8: 318 | CT8: 187 | CU8: 51 | CV8: 40 | CW8: 23 | CX8: 503 | CY8: 17 | CZ8: 10 | DA8: 50 | DB8: 288 | DC8: 89 | DD8: 0 | DE8: 49 | DF8: 0 | DG8: 685 | DH8: 332 | DI8: 119 | DJ8: 112 | DK8: 46 | DL8: 76 | DM8: 0 | DN8: 0 | DO8: 27768 | DP8: 0 | DQ8: 29632 | DR8: 0 | DS8: 20625 | DT8: 421 | DU8: 223 | DV8: 121 | DW8: 39 | DX8: 21 | DY8: 17 | DZ8: 0 | EA8: 0 | EB8: 264 | EC8: 114 | ED8: 31 | EE8: 82 | EF8: 18 | EG8: 0 | EH8: 0 | EI8: 19 | EJ8: 2.33 | EK8: 2.42 | EL8: 2.2 | EM8: 95 | EN8: 326 | EO8: 92200 | EP8: 105 | EQ8: 129 | ER8: 112 | ES8: 40 | ET8: 10 | EU8: 3 | EV8: 5 | EW8: 17 | EX8: 0 | EY8: 0 | EZ8: 1434 | FA8: 560 | FB8: 338 | FC8: 89 | FD8: 180 | FE8: 267 | FF8: 769 | FG8: 285 | FH8: 164 | FI8: 8 | FJ8: 141 | FK8: 171 | FL8: 665 | FM8: 275 | FN8: 174 | FO8: 81 | FP8: 39 | FQ8: 96 | FR8: 1644 | FS8: 870 | FT8: 774 | FU8: 73 | FV8: 1571 | FW8: 0 | FX8: 690 | FY8: 0 | FZ8: 25 | GA8: 0 | GB8: 4 | GC8: 925 | GD8: 21 | GE8: 130 | GF8: 51 | GG8: 56 | GH8: 0 | GI8: 0 | GJ8: 0 | GK8: 0 | GL8: 6 | GM8: 0 | GN8: 22 | GO8: 75 | GP8: 51 | GQ8: 64 | GR8: 0 | GS8: 0 | GT8: 1370 | GU8: 0 | GV8: 12 | GW8: 23 | GX8: 18 | GY8: 52 | GZ8: 0 | HA8: 0 | HB8: 717 | HC8: 0 | HD8: 10 | HE8: 52 | HF8: 33 | HG8: 12 | HH8: 0 | HI8: 0 | HJ8: 653
B9: 801 Cleveland Ave;Attalla, Alabama | C9: 102 | D9: 01055010200 | E9: 01055010200005 | F9: 1 | G9: Etowah County | H9: AL | I9: 38 | J9: 159 | K9: 672 | L9: 342 | M9: 109 | N9: 374 | O9: 160 | P9: 506 | Q9: 544 | R9: 623 | S9: 317 | T9: 133 | U9: 698 | V9: 221 | W9: 169 | X9: 38.7 | Y9: 118 | Z9: 161 | AA9: 159 | AB9: 14 | AC9: 188 | AD9: 42 | AE9: 323 | AF9: 396 | AG9: 277 | AH9: 170 | AI9: 51 | AJ9: 257 | AK9: 133 | AL9: 160 | AM9: 31.6 | AN9: 41 | AO9: 511 | AP9: 183 | AQ9: 95 | AR9: 186 | AS9: 118 | AT9: 183 | AU9: 148 | AV9: 346 | AW9: 147 | AX9: 82 | AY9: 441 | AZ9: 88 | BA9: 9 | BB9: 2035 | BC9: 28921 | BD9: 166 | BE9: 423 | BF9: 482 | BG9: 261 | BH9: 312 | BI9: 317 | BJ9: 42 | BK9: 32 | BL9: 1176 | BM9: 22472 | BN9: 155 | BO9: 256 | BP9: 314 | BQ9: 218 | BR9: 94 | BS9: 97 | BT9: 42 | BU9: 0 | BV9: 859 | BW9: 41164 | BX9: 11 | BY9: 167 | BZ9: 168 | CA9: 43 | CB9: 218 | CC9: 220 | CD9: 0 | CE9: 32 | CF9: 3211 | CG9: 39 | CH9: 91 | CI9: 412 | CJ9: 1329 | CK9: 860 | CL9: 229 | CM9: 131 | CN9: 120 | CO9: 1767 | CP9: 19 | CQ9: 44 | CR9: 202 | CS9: 673 | CT9: 545 | CU9: 152 | CV9: 80 | CW9: 52 | CX9: 1444 | CY9: 20 | CZ9: 47 | DA9: 210 | DB9: 656 | DC9: 315 | DD9: 77 | DE9: 51 | DF9: 68 | DG9: 1917 | DH9: 460 | DI9: 741 | DJ9: 190 | DK9: 269 | DL9: 185 | DM9: 61 | DN9: 11 | DO9: 38919 | DP9: 45227 | DQ9: 0 | DR9: 40000 | DS9: 42851 | DT9: 1446 | DU9: 563 | DV9: 513 | DW9: 104 | DX9: 266 | DY9: 0 | DZ9: 0 | EA9: 0 | EB9: 471 | EC9: 100 | ED9: 121 | EE9: 89 | EF9: 57 | EG9: 78 | EH9: 26 | EI9: 0 | EJ9: 2.53 | EK9: 2.3 | EL9: 3.23 | EM9: 728 | EN9: 718 | EO9: 79500 | EP9: 215 | EQ9: 689 | ER9: 346 | ES9: 108 | ET9: 50 | EU9: 26 | EV9: 0 | EW9: 12 | EX9: 0 | EY9: 0 | EZ9: 3854 | FA9: 987 | FB9: 1459 | FC9: 246 | FD9: 753 | FE9: 409 | FF9: 2011 | FG9: 446 | FH9: 732 | FI9: 183 | FJ9: 360 | FK9: 290 | FL9: 1843 | FM9: 541 | FN9: 727 | FO9: 63 | FP9: 393 | FQ9: 119 | FR9: 5027 | FS9: 2449 | FT9: 2578 | FU9: 164 | FV9: 4863 | FW9: 0 | FX9: 782 | FY9: 21 | FZ9: 0 | GA9: 0 | GB9: 70 | GC9: 4154 | GD9: 19 | GE9: 155 | GF9: 119 | GG9: 156 | GH9: 0 | GI9: 0 | GJ9: 0 | GK9: 0 | GL9: 22 | GM9: 24 | GN9: 213 | GO9: 401 | GP9: 313 | GQ9: 235 | GR9: 265 | GS9: 0 | GT9: 3474 | GU9: 24 | GV9: 34 | GW9: 40 | GX9: 159 | GY9: 14 | GZ9: 161 | HA9: 0 | HB9: 1956 | HC9: 0 | HD9: 179 | HE9: 361 | HF9: 154 | HG9: 221 | HH9: 104 | HI9: 0 | HJ9: 1518
B10: 2140 Gunter Ave;Guntersville, AL | C10: 307.01 | D10: 01095030701 | E10: 01095030701045 | F10: 1 | G10: Marshall County | H10: AL | I10: 38.2 | J10: 338 | K10: 302 | L10: 249 | M10: 94 | N10: 85 | O10: 183 | P10: 459 | Q10: 352 | R10: 535 | S10: 267 | T10: 110 | U10: 449 | V10: 182 | W10: 41 | X10: 33.4 | Y10: 207 | Z10: 214 | AA10: 192 | AB10: 56 | AC10: 37 | AD10: 79 | AE10: 249 | AF10: 186 | AG10: 232 | AH10: 128 | AI10: 74 | AJ10: 221 | AK10: 82 | AL10: 27 | AM10: 43.5 | AN10: 131 | AO10: 88 | AP10: 57 | AQ10: 38 | AR10: 48 | AS10: 104 | AT10: 210 | AU10: 166 | AV10: 303 | AW10: 139 | AX10: 36 | AY10: 228 | AZ10: 100 | BA10: 14 | BB10: 1679 | BC10: 31612 | BD10: 247 | BE10: 158 | BF10: 361 | BG10: 267 | BH10: 197 | BI10: 176 | BJ10: 138 | BK10: 135 | BL10: 749 | BM10: 25469 | BN10: 186 | BO10: 77 | BP10: 156 | BQ10: 133 | BR10: 27 | BS10: 107 | BT10: 59 | BU10: 4 | BV10: 930 | BW10: 37098 | BX10: 61 | BY10: 81 | BZ10: 205 | CA10: 134 | CB10: 170 | CC10: 69 | CD10: 79 | CE10: 131 | CF10: 2395 | CG10: 18 | CH10: 212 | CI10: 164 | CJ10: 698 | CK10: 505 | CL10: 217 | CM10: 390 | CN10: 191 | CO10: 1199 | CP10: 10 | CQ10: 120 | CR10: 60 | CS10: 412 | CT10: 252 | CU10: 107 | CV10: 139 | CW10: 99 | CX10: 1196 | CY10: 8 | CZ10: 92 | DA10: 104 | DB10: 286 | DC10: 253 | DD10: 110 | DE10: 251 | DF10: 92 | DG10: 1418 | DH10: 378 | DI10: 395 | DJ10: 142 | DK10: 204 | DL10: 196 | DM10: 33 | DN10: 70 | DO10: 46017 | DP10: 11164 | DQ10: 49375 | DR10: 68929 | DS10: 38125 | DT10: 847 | DU10: 214 | DV10: 418 | DW10: 157 | DX10: 19 | DY10: 37 | DZ10: 0 | EA10: 2 | EB10: 571 | EC10: 215 | ED10: 125 | EE10: 81 | EF10: 54 | EG10: 21 | EH10: 49 | EI10: 26 | EJ10: 2.57 | EK10: 2.19 | EL10: 3.13 | EM10: 547 | EN10: 300 | EO10: 145400 | EP10: 44 | EQ10: 144 | ER10: 255 | ES10: 136 | ET10: 112 | EU10: 85 | EV10: 57 | EW10: 5 | EX10: 9 | EY10: 0 | EZ10: 2757 | FA10: 586 | FB10: 1500 | FC10: 136 | FD10: 334 | FE10: 201 | FF10: 1371 | FG10: 258 | FH10: 708 | FI10: 93 | FJ10: 161 | FK10: 151 | FL10: 1386 | FM10: 328 | FN10: 792 | FO10: 43 | FP10: 173 | FQ10: 50 | FR10: 3646 | FS10: 1984 | FT10: 1662 | FU10: 417 | FV10: 3229 | FW10: 10 | FX10: 546 | FY10: 0 | FZ10: 22 | GA10: 15 | GB10: 37 | GC10: 3016 | GD10: 34 | GE10: 82 | GF10: 332 | GG10: 62 | GH10: 43 | GI10: 3 | GJ10: 1 | GK10: 0 | GL10: 14 | GM10: 48 | GN10: 19 | GO10: 293 | GP10: 199 | GQ10: 118 | GR10: 136 | GS10: 7 | GT10: 2613 | GU10: 34 | GV10: 8 | GW10: 225 | GX10: 148 | GY10: 60 | GZ10: 69 | HA10: 1 | HB10: 1298 | HC10: 14 | HD10: 11 | HE10: 68 | HF10: 51 | HG10: 58 | HH10: 67 | HI10: 6 | HJ10: 1315
B11: 2031 Military St S;Hamilton, AL | C11: 9644 | D11: 01093964400 | E11: 01093964400089 | F11: 1 | G11: Marion County | H11: AL | I11: 44.8 | J11: 208 | K11: 173 | L11: 264 | M11: 151 | N11: 54 | O11: 311 | P11: 715 | Q11: 571 | R11: 579 | S11: 438 | T11: 210 | U11: 625 | V11: 434 | W11: 133 | X11: 44.5 | Y11: 122 | Z11: 100 | AA11: 182 | AB11: 36 | AC11: 54 | AD11: 187 | AE11: 383 | AF11: 251 | AG11: 280 | AH11: 218 | AI11: 78 | AJ11: 345 | AK11: 266 | AL11: 89 | AM11: 46 | AN11: 86 | AO11: 73 | AP11: 82 | AQ11: 115 | AR11: 0 | AS11: 124 | AT11: 332 | AU11: 320 | AV11: 299 | AW11: 220 | AX11: 132 | AY11: 280 | AZ11: 168 | BA11: 44 | BB11: 2068 | BC11: 24949 | BD11: 263 | BE11: 528 | BF11: 353 | BG11: 333 | BH11: 242 | BI11: 242 | BJ11: 95 | BK11: 12 | BL11: 946 | BM11: 23750 | BN11: 143 | BO11: 201 | BP11: 265 | BQ11: 190 | BR11: 54 | BS11: 67 | BT11: 14 | BU11: 12 | BV11: 1122 | BW11: 30802 | BX11: 120 | BY11: 327 | BZ11: 88 | CA11: 143 | CB11: 188 | CC11: 175 | CD11: 81 | CE11: 0 | CF11: 3705 | CG11: 32 | CH11: 191 | CI11: 449 | CJ11: 1356 | CK11: 702 | CL11: 263 | CM11: 506 | CN11: 206 | CO11: 1910 | CP11: 32 | CQ11: 73 | CR11: 168 | CS11: 690 | CT11: 369 | CU11: 175 | CV11: 281 | CW11: 122 | CX11: 1795 | CY11: 0 | CZ11: 118 | DA11: 281 | DB11: 666 | DC11: 333 | DD11: 88 | DE11: 225 | DF11: 84 | DG11: 2161 | DH11: 873 | DI11: 548 | DJ11: 269 | DK11: 286 | DL11: 173 | DM11: 0 | DN11: 12 | DO11: 34396 | DP11: 0 | DQ11: 43236 | DR11: 33961 | DS11: 24318 | DT11: 1560 | DU11: 482 | DV11: 715 | DW11: 119 | DX11: 178 | DY11: 66 | DZ11: 0 | EA11: 0 | EB11: 601 | EC11: 332 | ED11: 156 | EE11: 89 | EF11: 22 | EG11: 0 | EH11: 0 | EI11: 2 | EJ11: 2.13 | EK11: 2.27 | EL11: 1.75 | EM11: 849 | EN11: 711 | EO11: 111800 | EP11: 341 | EQ11: 351 | ER11: 300 | ES11: 228 | ET11: 243 | EU11: 58 | EV11: 24 | EW11: 15 | EX11: 0 | EY11: 0 | EZ11: 4221 | FA11: 982 | FB11: 1934 | FC11: 328 | FD11: 502 | FE11: 475 | FF11: 2187 | FG11: 516 | FH11: 931 | FI11: 86 | FJ11: 219 | FK11: 435 | FL11: 2034 | FM11: 466 | FN11: 1003 | FO11: 242 | FP11: 283 | FQ11: 40 | FR11: 4866 | FS11: 2591 | FT11: 2275 | FU11: 28 | FV11: 4838 | FW11: 0 | FX11: 237 | FY11: 0 | FZ11: 0 | GA11: 28 | GB11: 122 | GC11: 4479 | GD11: 13 | GE11: 230 | GF11: 307 | GG11: 30 | GH11: 2 | GI11: 0 | GJ11: 0 | GK11: 0 | GL11: 19 | GM11: 0 | GN11: 14 | GO11: 119 | GP11: 217 | GQ11: 178 | GR11: 88 | GS11: 13 | GT11: 4126 | GU11: 0 | GV11: 14 | GW11: 36 | GX11: 167 | GY11: 50 | GZ11: 58 | HA11: 13 | HB11: 2195 | HC11: 0 | HD11: 0 | HE11: 83 | HF11: 50 | HG11: 128 | HH11: 30 | HI11: 0 | HJ11: 1931
B12: 2314 S Broad Ave;Lanett, AL | C12: 9544 | D12: 01017954400 | E12: 01017954400044 | F12: 1 | G12: Chambers County | H12: AL | I12: 49.7 | J12: 19 | K12: 26 | L12: 51 | M12: 19 | N12: 0 | O12: 40 | P12: 117 | Q12: 94 | R12: 107 | S12: 111 | T12: 13 | U12: 85 | V12: 74 | W12: 40 | X12: 54.9 | Y12: 16 | Z12: 15 | AA12: 33 | AB12: 19 | AC12: 0 | AD12: 31 | AE12: 33 | AF12: 27 | AG12: 51 | AH12: 55 | AI12: 6 | AJ12: 62 | AK12: 61 | AL12: 40 | AM12: 41 | AN12: 3 | AO12: 11 | AP12: 18 | AQ12: 0 | AR12: 0 | AS12: 9 | AT12: 84 | AU12: 67 | AV12: 56 | AW12: 56 | AX12: 7 | AY12: 23 | AZ12: 13 | BA12: 0 | BB12: 378 | BC12: 25000 | BD12: 51 | BE12: 121 | BF12: 36 | BG12: 5 | BH12: 88 | BI12: 37 | BJ12: 27 | BK12: 13 | BL12: 152 | BM12: 12976 | BN12: 36 | BO12: 91 | BP12: 21 | BQ12: 0 | BR12: 4 | BS12: 0 | BT12: 0 | BU12: 0 | BV12: 226 | BW12: 43826 | BX12: 15 | BY12: 30 | BZ12: 15 | CA12: 5 | CB12: 84 | CC12: 37 | CD12: 27 | CE12: 13 | CF12: 641 | CG12: 25 | CH12: 0 | CI12: 99 | CJ12: 188 | CK12: 129 | CL12: 97 | CM12: 70 | CN12: 33 | CO12: 335 | CP12: 20 | CQ12: 0 | CR12: 56 | CS12: 97 | CT12: 51 | CU12: 80 | CV12: 4 | CW12: 27 | CX12: 306 | CY12: 5 | CZ12: 0 | DA12: 43 | DB12: 91 | DC12: 78 | DD12: 17 | DE12: 66 | DF12: 6 | DG12: 470 | DH12: 211 | DI12: 73 | DJ12: 124 | DK12: 43 | DL12: 19 | DM12: 0 | DN12: 0 | DO12: 33295 | DP12: 0 | DQ12: 57937 | DR12: 67554 | DS12: 20795 | DT12: 331 | DU12: 159 | DV12: 136 | DW12: 0 | DX12: 6 | DY12: 30 | DZ12: 0 | EA12: 0 | EB12: 139 | EC12: 97 | ED12: 42 | EE12: 0 | EF12: 0 | EG12: 0 | EH12: 0 | EI12: 0 | EJ12: 1.69 | EK12: 1.84 | EL12: 1.35 | EM12: 125 | EN12: 206 | EO12: 100700 | EP12: 64 | EQ12: 100 | ER12: 66 | ES12: 76 | ET12: 25 | EU12: 0 | EV12: 0 | EW12: 0 | EX12: 0 | EY12: 0 | EZ12: 700 | FA12: 268 | FB12: 184 | FC12: 52 | FD12: 80 | FE12: 116 | FF12: 385 | FG12: 117 | FH12: 91 | FI12: 14 | FJ12: 53 | FK12: 110 | FL12: 315 | FM12: 151 | FN12: 93 | FO12: 38 | FP12: 27 | FQ12: 6 | FR12: 796 | FS12: 449 | FT12: 347 | FU12: 0 | FV12: 796 | FW12: 0 | FX12: 651 | FY12: 0 | FZ12: 0 | GA12: 0 | GB12: 0 | GC12: 145 | GD12: 0 | GE12: 50 | GF12: 39 | GG12: 18 | GH12: 0 | GI12: 0 | GJ12: 5 | GK12: 0 | GL12: 27 | GM12: 3 | GN12: 26 | GO12: 0 | GP12: 51 | GQ12: 19 | GR12: 13 | GS12: 0 | GT12: 668 | GU12: 0 | GV12: 15 | GW12: 0 | GX12: 33 | GY12: 19 | GZ12: 13 | HA12: 0 | HB12: 353 | HC12: 3 | HD12: 11 | HE12: 0 | HF12: 18 | HG12: 0 | HH12: 0 | HI12: 0 | HJ12: 315
B13: 5465 Hwy 90 W;Mobile, AL | C13: 68.02 | D13: 01097006802 | E13: 01097006802040 | F13: 1 | G13: Mobile County | H13: AL | I13: 37.4 | J13: 114 | K13: 122 | L13: 208 | M13: 176 | N13: 75 | O13: 231 | P13: 443 | Q13: 388 | R13: 279 | S13: 294 | T13: 113 | U13: 281 | V13: 173 | W13: 63 | X13: 39.1 | Y13: 84 | Z13: 60 | AA13: 63 | AB13: 123 | AC13: 75 | AD13: 92 | AE13: 183 | AF13: 220 | AG13: 101 | AH13: 151 | AI13: 75 | AJ13: 151 | AK13: 58 | AL13: 46 | AM13: 36.9 | AN13: 30 | AO13: 62 | AP13: 145 | AQ13: 53 | AR13: 0 | AS13: 139 | AT13: 260 | AU13: 168 | AV13: 178 | AW13: 143 | AX13: 38 | AY13: 130 | AZ13: 115 | BA13: 17 | BB13: 1544 | BC13: 24593 | BD13: 381 | BE13: 241 | BF13: 290 | BG13: 303 | BH13: 139 | BI13: 112 | BJ13: 0 | BK13: 78 | BL13: 711 | BM13: 22328 | BN13: 150 | BO13: 158 | BP13: 142 | BQ13: 124 | BR13: 87 | BS13: 13 | BT13: 0 | BU13: 37 | BV13: 833 | BW13: 25960 | BX13: 231 | BY13: 83 | BZ13: 148 | CA13: 179 | CB13: 52 | CC13: 99 | CD13: 0 | CE13: 41 | CF13: 2034 | CG13: 3 | CH13: 38 | CI13: 305 | CJ13: 913 | CK13: 418 | CL13: 138 | CM13: 141 | CN13: 78 | CO13: 985 | CP13: 3 | CQ13: 16 | CR13: 144 | CS13: 459 | CT13: 174 | CU13: 56 | CV13: 71 | CW13: 62 | CX13: 1049 | CY13: 0 | CZ13: 22 | DA13: 161 | DB13: 454 | DC13: 244 | DD13: 82 | DE13: 70 | DF13: 16 | DG13: 1018 | DH13: 279 | DI13: 368 | DJ13: 117 | DK13: 92 | DL13: 100 | DM13: 27 | DN13: 35 | DO13: 36912 | DP13: 35170 | DQ13: 39271 | DR13: 56875 | DS13: 24620 | DT13: 623 | DU13: 184 | DV13: 238 | DW13: 106 | DX13: 34 | DY13: 16 | DZ13: 30 | EA13: 15 | EB13: 395 | EC13: 53 | ED13: 101 | EE13: 116 | EF13: 92 | EG13: 5 | EH13: 0 | EI13: 28 | EJ13: 2.9 | EK13: 2.63 | EL13: 3.32 | EM13: 260 | EN13: 363 | EO13: 95000 | EP13: 69 | EQ13: 301 | ER13: 154 | ES13: 35 | ET13: 29 | EU13: 0 | EV13: 11 | EW13: 9 | EX13: 15 | EY13: 0 | EZ13: 2516 | FA13: 699 | FB13: 1055 | FC13: 107 | FD13: 426 | FE13: 229 | FF13: 1275 | FG13: 371 | FH13: 522 | FI13: 75 | FJ13: 152 | FK13: 155 | FL13: 1241 | FM13: 328 | FN13: 533 | FO13: 32 | FP13: 274 | FQ13: 74 | FR13: 2960 | FS13: 1482 | FT13: 1478 | FU13: 337 | FV13: 2623 | FW13: 32 | FX13: 402 | FY13: 0 | FZ13: 0 | GA13: 142 | GB13: 102 | GC13: 2282 | GD13: 0 | GE13: 0 | GF13: 117 | GG13: 108 | GH13: 103 | GI13: 40 | GJ13: 0 | GK13: 0 | GL13: 27 | GM13: 17 | GN13: 10 | GO13: 104 | GP13: 193 | GQ13: 228 | GR13: 76 | GS13: 0 | GT13: 2266 | GU13: 7 | GV13: 5 | GW13: 55 | GX13: 50 | GY13: 155 | GZ13: 52 | HA13: 0 | HB13: 1110 | HC13: 10 | HD13: 5 | HE13: 49 | HF13: 143 | HG13: 73 | HH13: 24 | HI13: 0 | HJ13: 1156

Sheet Demographics
A1: ="Demographics for "& Data!L1 -> Demographics for addresstotract
B2: Population | C2: =SUM(Data!FR3:FR100002) -> 36102 | D2: Households | E2: =SUM(Data!DG3:DG100002) -> 15049
B3: Median Age | C3: =SUMPRODUCT(Data!$F$3:$F$100002,Data!$I$3:$I$100002*($I$3:$I$100002<>"0"))/SUMIF(Data!$I$3:$I$100002,"<>0",Data!$F$3:$F$100002) -> 40.24545455 | D3: Persons Per Household | E3: =SUMPRODUCT(Data!$F$3:$F$100002,Data!$EJ$3:$EJ$100002*($EJ$3:$EJ$100002<>"0"))/SUMIF(Data!$EJ$3:$EJ$100002,"<>0",Data!$F$3:$F$100002) -> 2.300909091
B4: Median Age Female | C4: =SUMPRODUCT(Data!$F$3:$F$100002,Data!$X$3:$X$100002*($X$3:$X$100002<>"0"))/SUMIF(Data!$X$3:$X$100002,"<>0",Data!$F$3:$F$100002) -> 41.23636364 | D4: Median Income Per Household | E4: =SUMPRODUCT(Data!$F$3:$F$100002,Data!$DO$3:$DO$100002*($DO$3:$DO$100002<>"0"))/SUMIF(Data!$DO$3:$DO$100002,"<>0",Data!$F$3:$F$100002) -> 37989.72727
B5: Median Age Male | C5: =SUMPRODUCT(Data!$F$3:$F$100002,Data!$AM$3:$AM$100002*($AM$3:$AM$100002<>"0"))/SUMIF(Data!$AM$3:$AM$100002,"<>0",Data!$F$3:$F$100002) -> 38.47272727 | D5: Median Housing Value | E5: =SUMPRODUCT(Data!$F$3:$F$100002,Data!$EO$3:$EO$100002*($EO$3:$EO$100002<>"0"))/SUMIF(Data!$EO$3:$EO$100002,"<>0",Data!$F$3:$F$100002) -> 116945.4545

Sheet Age
A1: ="Population by Age for "& Data!L1 -> Population by Age for addresstotract
D2: Number | E2: Percent
C3: 0 to 4 | D3: =SUM(Data!J$3:$J$100002) -> 1738 | E3: =D3/($D$17+0.000000001) -> 0.04814137721
C4: 5 to 9 | D4: =SUM(Data!K$3:$K$100002) -> 2533 | E4: =D4/($D$17+0.000000001) -> 0.07016231788
C5: 0 to 14 | D5: =SUM(Data!L$3:$L$100002) -> 1914 | E5: 0.05301645338
C6: 15 to 17 | D6: =SUM(Data!M$3:$M$100002) -> 1146 | E6: 0.03174339372
C7: 18 to 20 | D7: =SUM(Data!N$3:$N$100002) -> 1276 | E7: 0.03534430225
C8: 21 to 24 | D8: =SUM(Data!O3:$O$100002) -> 1753 | E8: 0.04855686666
C9: 25 to 34 | D9: =SUM(Data!$P$3:$P$100002) -> 5680 | E9: 0.1573320038
C10: 35 to 44 | D10: =SUM(Data!Q$3:$Q$100002) -> 4597 | E10: 0.1273336657
C11: 45 to 54 | D11: =SUM(Data!R$3:$R$100002) -> 4166 | E11: 0.115395269
C12: 55 to 61 | D12: =SUM(Data!S$3:$S$100002) -> 3174 | E12: 0.08791756689
C13: 62 to 64 | D13: =SUM(Data!T$3:$T$100002) -> 1209 | E13: 0.03348844939
C14: 65 to 74 | D14: =SUM(Data!$U$3:U$100002) -> 3625 | E14: 0.1004099496
C15: 75 to84 | D15: =SUM(Data!V$3:$V$100002) -> 2129 | E15: 0.05897180212
C16: 85 Plus | D16: =SUM(Data!W$3:$W$100002) -> 1162 | E16: 0.03218658246
C17: Total | D17: =SUM(D3:D16) -> 36102 | E17: =SUM(E3:E16) -> 1
C18: Total Unique Tracts | D18: =COUNTA(Data!B3:B100000) -> 11
C19: Median Age | D19: =SUMPRODUCT(Data!$F$3:$F$100002,Data!$I$3:$I$100002*($I$3:$I100002<>"0"))/SUMIF(Data!$I$3:$I$100002,"<>0",Data!$F$3:$F$100002) -> 40.24545455
C20: *May include tracts with no data

Sheet Education Attainment
A1: ="Education Atteinment for "& Data!L1 -> Education Atteinment for addresstotract
D2: Number | E2: Percent
C3: No Schooling | D3: =SUM(Data!CG$3:$CG$100002) -> 238 | E3: =D3/($D$11+0.000000001) -> 0.009245590863
C4: Nursery to Grade8 | D4: =SUM(Data!CH$3:$CH$100002) -> 1131 | E4: =D4/($D$11+0.000000001) -> 0.04393598011
C5: Some High School | D5: =SUM(Data!CI$3:$CI$100002) -> 3001 | E5: 0.1165799083
C6: High School Graduate | D6: =SUM(Data!CJ$3:$CJ$100002) -> 8689 | E6: 0.3375417605
C7: Some College | D7: =SUM(Data!CK$3:$CK$100002) -> 4980 | E7: 0.1934581618
C8: Associate Degree | D8: =SUM(Data!CL$3:$CL$100002) -> 1984 | E8: 0.07707248854
C9: Bachelors Degree | D9: =SUM(Data!CM$3:$CM$100002) -> 3783 | E9: 0.1469582783
C10: Advanced Degree | D10: =SUM(Data!CN$3:$CN$100002) -> 1936 | E10: 0.07520783156
C11: Total (Age 25+) | D11: =SUM(D3:D10) -> 25742 | E11: =SUM(E3:E10) -> 1
C12: Total Unique Tracts | D12: =COUNTA(Data!B3:B100000) -> 11

Sheet Gender
A1: ="Gender Population for "& Data!L1 -> Gender Population for addresstotract
F2: Number | G2: Percent
E3: Male | F3: =SUM(Data!FT3:FT100002) -> 17200 | G3: =F3/(F$5+0.000001) -> 0.4764278987
E4: Female | F4: =SUM(Data!FS3:FS100002) -> 18902 | G4: =F4/(F$5+0.000001) -> 0.5235721013
E5: Total Population | F5: =SUM(F3,F4) -> 36102 | G5: =SUM(G3:G4) -> 1

Sheet HIspanic
A1: ="Hispanic Population for "& Data!L1 -> Hispanic Population for addresstotract
D2: Number | E2: Percent
C3: Hispanic | D3: =SUM(Data!FU$3:FU$100002) -> 2616 | E3: =D3/($D$5+0.000000001) -> 0.07246135948
C4: Non-Hispanic | D4: =SUM(Data!FV$3:FV$100002) -> 33486 | E4: =D4/($D$5+0.000000001) -> 0.9275386405
C5: Total Population | D5: =SUM(D3:D4) -> 36102 | E5: =SUM(E3:E4) -> 1

Sheet Housing Distribution
A1: ="Housing Value Distribution for "& Data!L1 -> Housing Value Distribution for addresstotract
D2: Number | E2: Percent
C3: Less than 50K | D3: =SUM(Data!EP$3:EP$100002) -> 1236 | E3: =D3/($D$13+0.000000001) -> 0.1336649724
C4: 50 to 99K | D4: =SUM(Data!EQ$3:EQ$100002) -> 2497 | E4: =D4/($D$13+0.000000001) -> 0.2700335244
C5: 100 to 149K | D5: =SUM(Data!ER$3:ER$100002) -> 1966 | E5: 0.212609495
C6: 150 to 199K | D6: =SUM(Data!ES$3:ES$100002) -> 1273 | E6: 0.1376662701
C7: 200 to 299K | D7: =SUM(Data!ET$3:ET$100002) -> 1473 | E7: 0.1592949065
C8: 300 to 399K | D8: =SUM(Data!EU$3:EU$100002) -> 535 | E8: 0.05785660214
C9: 400 to 499K | D9: =SUM(Data!EV$3:EV$100002) -> 160 | E9: 0.01730290905
C10: 500 to 749K | D10: =SUM(Data!EW$3:EW$100002) -> 72 | E10: 0.007786309073
C11: 750 to 999K | D11: =SUM(Data!EX$3:EX$100002) -> 31 | E11: 0.003352438629
C12: 1 MM Plus | D12: =SUM(Data!EY$3:EY$100002) -> 4 | E12: 0.0004325727263
C13: Total Owner Occupied Homes | D13: =SUM(D3:D12) -> 9247 | E13: =SUM(E3:E12) -> 1

Sheet Household Income
A1: ="Household Income Distribution for "& Data!L1 -> Household Income Distribution for addresstotract
D2: Number | E2: Percent
C3: 0 to 24K | D3: =SUM(Data!DH$3:$DH$100002) -> 4694 | E3: =D3/($D$10+0.000000001) -> 0.3119144129
C4: 25 to 49K | D4: =SUM(Data!DI$3:$DI$100002) -> 4107 | E4: 0.2729084989
C5: 50 to 74K | D5: =SUM(Data!DJ$3:$DJ$100002) -> 2291 | E5: 0.152236029
C6: 75 to 99K | D6: =SUM(Data!DK$3:$DK$100002) -> 1743 | E6: 0.1158216493
C7: 100 to 149K | D7: =SUM(Data!DL$3:$DL$100002) -> 1538 | E7: 0.1021994817
C8: 150 to 199K | D8: =SUM(Data!DM$3:$DM$100002) -> 393 | E8: 0.02611469201
C9: 200 KPlus | D9: =SUM(Data!DN$3:$DN$100002) -> 283 | E9: 0.01880523623
C10: Total Households | D10: =SUM(D3:D9) -> 15049 | E10: =SUM(E3:E9) -> 1
C11: Total Unique Tracts | D11: =COUNTA(Data!B3:B100000) -> 11
C12: Median Income Per Household | D12: =SUMPRODUCT(Data!$F$3:$F$100002,Data!$DO$3:$DO$100002*($DO$3:$DO$100002<>"0"))/SUMIF(Data!$DO$3:$DO$100002,"<>0",Data!$F$3:$F$100002) -> 37989.72727

Sheet Individual Income
A1: ="Individual Income Tract Distribution for "& Data!L1 -> Individual Income Tract Distribution for addresstotract
D2: Number | E2: Percent
C3: 0-25K* | D3: =SUMIFS(Data!$F$3:$F$100000,Data!$BC$3:$BC$100000,"<=25000")+SUMIFS(Data!$F$3:$F$100000,Data!$BC$3:$BC$100000,"") -> 6 | E3: =D3/($D$9+0.000000001) -> 0.5454545454
C4: >25K to 50K | D4: =SUMIFS(Data!$F$3:$F$100000,Data!$BC$3:$BC$100000,"<=50000",Data!$BC$3:$BC$100000,">25000") -> 5 | E4: =D4/($D$9+0.000000001) -> 0.4545454545
C5: 50K to 75K | D5: =SUMIFS(Data!$F$3:$F$100000,Data!$BC$3:$BC$100000,"<=75000",Data!$BC$3:$BC$100000,">50000") -> 0 | E5: 0
C6: 75K-100K | D6: =SUMIFS(Data!$F$3:$F$100000,Data!$BC$3:$BC$100000,"<=100000",Data!$BC$3:$BC$100000,">75000") -> 0 | E6: 0
C7: 100K - 125K | D7: =SUMIFS(Data!$F$3:$F$100000,Data!$BC$3:$BC$100000,"<=125000",Data!$BC$3:$BC$100000,">100000") -> 0 | E7: 0
C8: >125K | D8: =SUMIFS(Data!$F$3:$F$100000,Data!$BC$3:$BC$100000,">125000") -> 0 | E8: 0
C9: Total Tracts | D9: =SUM(D3:D8) -> 11 | E9: =SUM(E3:E8) -> 0.9999999999
C10: Total Unique Tracts | D10: =COUNTA(Data!B3:B100000) -> 11
C11: Median Income Per Individual Earner | D11: =SUMPRODUCT(Data!$F$3:$F$100002,Data!$BC$3:$BC$100002*($BC$3:$BC$100002<>"0"))/SUMIF(Data!$BC$3:$BC$100002,"<>0",Data!$F$3:$F$100002) -> 27809.90909
C12: *May include tracts with no data

Sheet Income Population
A1: ="Individual Income Population Distribution for"&Data!L1 -> Individual Income Population Distribution foraddresstotract
D2: Number | E2: Percent
C3: <10K* | D3: =SUM(Data!BD$3:$BD$100002) -> 2817 | E3: =D3/($D$11+0.000000001) -> 0.1649200866
C4: 10 to 19K | D4: =SUM(Data!BE$3:$BE$100002) -> 2878 | E4: =D4/($D$11+0.000000001) -> 0.1684913061
C5: 20 to 29K | D5: =SUM(Data!BF$3:$BF$100002) -> 2753 | E5: 0.1611732334
C6: 30 to 39K | D6: =SUM(Data!BG$3:$BG$100002) -> 2486 | E6: 0.1455418301
C7: 40 to 49K | D7: =SUM(Data!BH$3:$BH$100002) -> 1876 | E7: 0.1098296353
C8: 50 to 74K | D8: =SUM(Data!BI$3:$BI$100002) -> 2406 | E8: 0.1408582636
C9: 75 to 99K | D9: =SUM(Data!BJ$3:$BJ$100002) -> 1154 | E9: 0.06756044728
C10: >100K | D10: =SUM(Data!BK$3:$BK$100002) -> 711 | E10: 0.04162519759
C11: Total | D11: =SUM(D3:D10) -> 17081 | E11: =SUM(E3:E10) -> 1
C12: Total Unique Tracts | D12: =COUNTA(Data!B3:B100000) -> 11
C13: Median Income Per Individual Earner | D13: =SUMPRODUCT(Data!$F$3:$F$100002,Data!$BC$3:$BC$100002*($BC$3:$BC$100002<>"0"))/SUMIF(Data!$BC$3:$BC$100002,"<>0",Data!$F$3:$F$100002) -> 27809.90909
C14: *May include tracts with no data

Sheet Marital Status
A1: ="Marital Status Distribution for "& Data!L1 -> Marital Status Distribution for addresstotract
D2: Number | E2: Percent
C3: Never Married | D3: =SUM(Data!FA$3:$FA$100002) -> 9155 | E3: =D3/($D$8+0.000000001) -> 0.3060133035
C4: Married Spouse Present | D4: =SUM(Data!FB$3:$FB$100002) -> 12019 | E4: =D4/($D$8+0.000000001) -> 0.4017448274
C5: Married Spouse Absent | D5: =SUM(Data!FC$3:$FC$100002) -> 1593 | E5: =D5/($D$8+0.000000001) -> 0.05324731758
C6: Divorced | D6: =SUM(Data!FD$3:$FD$100002) -> 4278 | E6: =D6/($D$8+0.000000001) -> 0.1429956212
C7: Widowed | D7: =SUM(Data!FE$3:$FE$100002) -> 2872 | E7: =D7/($D$8+0.000000001) -> 0.09599893037
C8: Individuals (15 and older) | D8: =SUM(D3:D7) -> 29917 | E8: =SUM(E3:E7) -> 1

Sheet Mortage
A1: ="Mortage Information for "& Data!L1 -> Mortage Information for addresstotract
D2: Number | E2: Percent
C3: Housing Units with Mortgage | D3: =SUM(Data!EM$3:EM$100002) -> 4922 | E3: =D3/($D$5+0.000000001) -> 0.5322807397
C4: Housing Units without Mortgage | D4: =SUM(Data!EN$3:EN$100002) -> 4325 | E4: =D4/($D$5+0.000000001) -> 0.4677192603
C5: Total Units | D5: =SUM(D3:D4) -> 9247 | E5: =SUM(E3:E4) -> 1

Sheet Race
A1: ="Population by Race for "& Data!L1 -> Population by Race for addresstotract
D2: Number | E2: Percent
C3: Asian | D3: =SUM(Data!FW$3:FW$100002) -> 103 | E3: =D3/($D$10+0.000000001) -> 0.002853027533
C4: Black or African American | D4: =SUM(Data!FX$3:FX$100002) -> 7828 | E4: =D4/($D$10+0.000000001) -> 0.2168300925
C5: American Indian or Alaskan Native | D5: =SUM(Data!FZ$3:FZ$100002) -> 63 | E5: 0.001745055676
C6: Native Hawaiian or other Pacific Islander | D6: =SUM(Data!FY$3:FY$100002) -> 21 | E6: 0.0005816852252
C7: White | D7: =SUM(Data!GC$3:GC$100002) -> 26419 | E7: 0.7317877126
C8: Two or More Races | D8: =SUM(Data!GB$3:GB$100002) -> 458 | E8: =D8/($D$10+0.000000001) -> 0.01268627777
C9: Other | D9: =SUM(Data!GA$3:GA$100002) -> 1210 | E9: 0.03351614869
C10: Total Population | D10: =SUM(D3:D9) -> 36102 | E10: =SUM(E3:E9) -> 1

Sheet Rent
A1: ="Rent Distribution for "& Data!L1 -> Rent Distribution for addresstotract
D2: Number | E2: Percent
C3: Less than 250 | D3: =SUM(Data!GD$3:$GD$100002) -> 285 | E3: =D3/($D$12+0.000000001) -> 0.04912099276
C4: 250 to 499 | D4: =SUM(Data!GE$3:$GE$100002) -> 1178 | E4: =D4/($D$12+0.000000001) -> 0.2030334367
C5: 500 to 749 | D5: =SUM(Data!GF$3:$GF$100002) -> 1911 | E5: 0.329369183
C6: 750 to 999 | D6: =SUM(Data!GG$3:$GG$100002) -> 1096 | E6: 0.1889003792
C7: 1000 to 1249 | D7: =SUM(Data!GH$3:$GH$100002) -> 362 | E7: 0.06239227852
C8: 1250 to1499 | D8: =SUM(Data!GI$3:$GI$100002) -> 335 | E8: 0.05773871079
C9: 150 to 1999 | D9: =SUM(Data!GJ$3:$GJ$100002) -> 257 | E9: 0.04429507067
C10: 2000 Plus | D10: =SUM(Data!GK$3:$GK$100002) -> 70 | E10: =D10/($D$12+0.000000001) -> 0.01206480524
C11: No Cash | D11: =SUM(Data!GL$3:$GL$100002) -> 308 | E11: 0.05308514305
C12: Total Rental Units | D12: =SUM(D3:D11) -> 5802 | E12: =SUM(E3:E11) -> 1

Sheet School Enrollment
A1: ="School Enrollment Distribution for "& Data!L1 -> School Enrollment Distribution for addresstotract
D2: Number | E2: Percent
C3: Preschool | D3: =SUM(Data!GM$3:$GM$100002) -> 218 | E3: =D3/($D$11+0.000000001) -> 0.006249820819
C4: Kindergarten | D4: =SUM(Data!GN$3:$GN$100002) -> 502 | E4: =D4/($D$11+0.000000001) -> 0.01439178923
C5: Grades 1 to 4 | D5: =SUM(Data!GO$3:$GO$100002) -> 1897 | E5: 0.05438490869
C6: Grades 5 to 8 | D6: =SUM(Data!GP$3:$GP$100002) -> 1681 | E6: 0.04819242568
C7: Grades 9 to 12 | D7: =SUM(Data!GQ$3:$GQ$100002) -> 1561 | E7: 0.04475215733
C8: College | D8: =SUM(Data!GR$3:$GR$100002) -> 1028 | E8: 0.02947163212
C9: Grad School | D9: =SUM(Data!GS$3:$GS$100002) -> 379 | E9: 0.01086551418
C10: Not Enrolled | D10: =SUM(Data!GT$3:$GT$100002) -> 27615 | E10: 0.791691752
C11: Total | D11: =SUM(D3:D10) -> 34881 | E11: =SUM(E3:E10) -> 1

Sheet Age Distribution Female
A1: ="Female Age Population Distribution for "& Data!L1 -> Female Age Population Distribution for addresstotract
D2: Number | E2: Percent
C3: 0 to 4 | D3: =SUM(Data!Y$3:$Y$100002) -> 1021 | E3: =D3/($D$17+0.000000001) -> 0.0540154481
C4: 5 to 9 | D4: =SUM(Data!Z$3:$Z$100002) -> 1143 | E4: =D4/($D$17+0.000000001) -> 0.06046979156
C5: 0 to 14 | D5: =SUM(Data!AA$3:$AA$100002) -> 911 | E5: 0.0481959581
C6: 15 to 17 | D6: =SUM(Data!AB$3:$AB100002) -> 628 | E6: 0.03322399746
C7: 18 to 20 | D7: =SUM(Data!AC$3:$AC$100002) -> 622 | E7: 0.03290657073
C8: 21 to 24 | D8: =SUM(Data!AD3:$AD$100002) -> 929 | E8: 0.04914823828
C9: 25 to 34 | D9: =SUM(Data!$AE$3:$AE$100002) -> 3018 | E9: 0.1596656438
C10: 35 to 44 | D10: =SUM(Data!AF$3:$AF$100002) -> 2290 | E10: 0.1211512009
C11: 45 to 54 | D11: =SUM(Data!AG$3:$AG$100002) -> 2014 | E11: 0.1065495715
C12: 55 to 61 | D12: =SUM(Data!AH$3:$AH$100002) -> 1608 | E12: 0.08507036292
C13: 62 to 64 | D13: =SUM(Data!AI$3:$AI$100002) -> 640 | E13: 0.03385885092
C14: 65 to 74 | D14: =SUM(Data!$AJ$3:AJ$100002) -> 1891 | E14: 0.1000423236
C15: 75 to84 | D15: =SUM(Data!AK$3:$AK$100002) -> 1208 | E15: 0.0639085811
C16: 85 Plus | D16: =SUM(Data!AL$3:$AL$100002) -> 979 | E16: 0.05179346101
C17: Total | D17: =SUM(D3:D16) -> 18902 | E17: =SUM(E3:E16) -> 1
C18: Total Unique Tracts | D18: =COUNTA(Data!B3:B100000) -> 11
C19: Median Age Female | D19: =SUMPRODUCT(Data!$F$3:$F$100002,Data!$X$3:$X$100002*($X$3:$X$99953<>"0"))/SUMIF(Data!$X$3:$X$100002,"<>0",Data!$F$3:$F$100002) -> 
C20: *May include tracts with no data

Sheet Age Distribution Male
A1: ="Male Age Population Distribution for "& Data!L1 -> Male Age Population Distribution for addresstotract
D2: Number | E2: Percent
C3: 0 to 4 | D3: =SUM(Data!AN$3:$AN$100002) -> 717 | E3: =D3/($D$17+0.000000001) -> 0.04168604651
C4: 5 to 9 | D4: =SUM(Data!AO$3:$AO$100002) -> 1390 | E4: =D4/($D$17+0.000000001) -> 0.08081395349
C5: 0 to 14 | D5: =SUM(Data!AP$3:$AP$100002) -> 1003 | E5: 0.05831395349
C6: 15 to 17 | D6: =SUM(Data!AQ$3:$AQ100002) -> 518 | E6: 0.03011627907
C7: 18 to 20 | D7: =SUM(Data!AR$3:$AR$100002) -> 654 | E7: 0.03802325581
C8: 21 to 24 | D8: =SUM(Data!AS3:$AS$100002) -> 824 | E8: 0.04790697674
C9: 25 to 34 | D9: =SUM(Data!$AT$3:$AT$100002) -> 2662 | E9: 0.1547674419
C10: 35 to 44 | D10: =SUM(Data!AU$3:$AU$100002) -> 2307 | E10: 0.134127907
C11: 45 to 54 | D11: =SUM(Data!AV$3:$AV$100002) -> 2152 | E11: 0.1251162791
C12: 55 to 61 | D12: =SUM(Data!AW$3:$AW$100002) -> 1566 | E12: 0.09104651163
C13: 62 to 64 | D13: =SUM(Data!AX$3:$AX$100002) -> 569 | E13: 0.03308139535
C14: 65 to 74 | D14: =SUM(Data!$AY$3:AY$100002) -> 1734 | E14: 0.1008139535
C15: 75 to84 | D15: =SUM(Data!AZ$3:$AZ$100002) -> 921 | E15: 0.05354651163
C16: 85 Plus | D16: =SUM(Data!BA$3:$BA$100002) -> 183 | E16: 0.01063953488
C17: Total | D17: =SUM(D3:D16) -> 17200 | E17: =SUM(E3:E16) -> 1
C18: Total Unique Tracts | D18: =COUNTA(Data!B3:B100000) -> 11
C19: Median Age Male | D19: =SUMPRODUCT(Data!$F$3:$F$100002,Data!$AM$3:$AM$100002*($AM$3:$AM$99953<>"0"))/SUMIF(Data!$AM$3:$AM$100002,"<>0",Data!$F$3:$F$100002) -> 
C20: *May include tracts with no data

Sheet Education Attainment Female
A1: ="Female Education Attainment Distribution for "& Data!L1 -> Female Education Attainment Distribution for addresstotract
D2: Number | E2: Percent
C3: No Schooling | D3: =SUM(Data!CP$3:$CP$100002) -> 92 | E3: =D3/($D$11+0.000000001) -> 0.00674091442
C4: Nursery to Grade8 | D4: =SUM(Data!CQ$3:$CQ$100002) -> 621 | E4: =D4/($D$11+0.000000001) -> 0.04550117233
C5: Some High School | D5: =SUM(Data!CR$3:$CR$100002) -> 1246 | E5: 0.0912954279
C6: High School Graduate | D6: =SUM(Data!CS$3:$CS$100002) -> 4579 | E6: 0.335507034
C7: Some College | D7: =SUM(Data!CT$3:$CT$100002) -> 2798 | E7: 0.2050117233
C8: Associate Degree | D8: =SUM(Data!CU$3:$CU$100002) -> 1285 | E8: 0.09415298945
C9: Bachelors Degree | D9: =SUM(Data!CV$3:$CV$100002) -> 1916 | E9: 0.1403868699
C10: Advanced Degree | D10: =SUM(Data!CW$3:$CW$100002) -> 1111 | E10: 0.0814038687
C11: Total (Age 25+) | D11: =SUM(D3:D10) -> 13648 | E11: =SUM(E3:E10) -> 1
C12: Total Unique Tracts | D12: =COUNTA(Data!B3:B100000) -> 11

Sheet Education Attainment Male
A1: ="Male Education Attainment Distribution for "& Data!L1 -> Male Education Attainment Distribution for addresstotract
D2: Number | E2: Percent
C3: No Schooling | D3: =SUM(Data!CY$3:$CY$100002) -> 146 | E3: =D3/($D$11+0.000000001) -> 0.01207210187
C4: Nursery to Grade8 | D4: =SUM(Data!CZ$3:$CZ$100002) -> 510 | E4: =D4/($D$11+0.000000001) -> 0.04216967091
C5: Some High School | D5: =SUM(Data!DA$3:$DA$100002) -> 1755 | E5: 0.1451132793
C6: High School Graduate | D6: =SUM(Data!DB$3:$DB$100002) -> 4110 | E6: 0.3398379362
C7: Some College | D7: =SUM(Data!DC$3:$DC$100002) -> 2182 | E7: 0.180420043
C8: Associate Degree | D8: =SUM(Data!DD$3:$DD$100002) -> 699 | E8: 0.05779725484
C9: Bachelors Degree | D9: =SUM(Data!DE$3:$DE$100002) -> 1867 | E9: 0.1543740698
C10: Advanced Degree | D10: =SUM(Data!DF$3:$DF$100002) -> 825 | E10: 0.06821564412
C11: Total (Age 25+) | D11: =SUM(D3:D10) -> 12094 | E11: =SUM(E3:E10) -> 1
C12: Total Unique Tracts | D12: =COUNTA(Data!B3:B100000) -> 11

Sheet Household Income By Age
A1: ="Household Median Income By Age for "& Data!L1 -> Household Median Income By Age for addresstotract
D2: Number
C3: Under 25 Years | D3: =SUMPRODUCT(Data!$F$3:$F$100002,Data!$DP$3:$DP$100002*($DP$3:$DP$100002<>"0"))/SUMIF(Data!$DP$3:$DP$100002,"<>0",Data!$F$3:$F$100002) -> 31692.25
C4: 25 to 44 Years | D4: =SUMPRODUCT(Data!$F$3:$F$100002,Data!$DQ$3:$DQ$100002*($DQ$3:$DQ$100002<>"0"))/SUMIF(Data!$DQ$3:$DQ$100002,"<>0",Data!$F$3:$F$100002) -> 45925.7
C5: 45 to 64 Years | D5: =SUMPRODUCT(Data!$F$3:$F$100002,Data!$DR$3:$DR$100002*($DR$3:$DR$100002<>"0"))/SUMIF(Data!$DR$3:$DR$100002,"<>0",Data!$F$3:$F$100002) -> 55620.11111
C6: 65 Years And Over | D6: =SUMPRODUCT(Data!$F$3:$F$100002,Data!$DS$3:$DS$100002*($DS$3:$DS$100002<>"0"))/SUMIF(Data!$DS$3:$DS$100002,"<>0",Data!$F$3:$F$100002) -> 27709.72727
C8: Total Unique Tracts | D8: =COUNTA(Data!B3:B100000) -> 11
C9: Household Median Income | D9: =SUMPRODUCT(Data!$F$3:$F$100002,Data!$DO$3:$DO$100002*($DO$3:$DO$100002<>"0"))/SUMIF(Data!$DO$3:$DO$100002,"<>0",Data!$F$3:$F$100002) -> 37989.72727

Sheet Household Size Owner
A1: ="Household Size Owner Occupied for "& Data!L1 -> Household Size Owner Occupied for addresstotract
D2: Number | E2: Percent
C3: 1 Person | D3: =SUM(Data!DU$3:$DU$100002) -> 3115 | E3: =D3/($D$10+0.000000001) -> 0.3368660106
C4: 2 Person | D4: =SUM(Data!DV$3:$DV$100002) -> 3954 | E4: 0.4275981399
C5: 3 Person | D5: =SUM(Data!DW$3:$DW$100002) -> 1121 | E5: 0.1212285065
C6: 4 Person | D6: =SUM(Data!DX$3:$DX$100002) -> 744 | E6: 0.08045852709
C7: 5 Person | D7: =SUM(Data!DY$3:$DY$100002) -> 254 | E7: 0.02746836812
C8: 6 Person | D8: =SUM(Data!DZ$3:$DZ$100002) -> 42 | E8: 0.004542013626
C9: 7+ Person | D9: =SUM(Data!EA$3:$EA$100002) -> 17 | E9: 0.001838434087
C10: Total Owner Households | D10: =SUM(D3:D9) -> 9247 | E10: =SUM(E3:E9) -> 1
C11: Total Unique Tracts | D11: =COUNTA(Data!B3:B100000) -> 11

Sheet Household Size Renter
A1: ="Household Size Renter Occupied for "& Data!L1 -> Household Size Renter Occupied for addresstotract
D2: Number | E2: Percent
C3: 1 Person | D3: =SUM(Data!EC$3:$EC$100002) -> 2399 | E3: =D3/($D$10+0.000000001) -> 0.413478111
C4: 2 Person | D4: =SUM(Data!ED$3:$ED$100002) -> 1279 | E4: 0.2204412272
C5: 3 Person | D5: =SUM(Data!EE$3:$EE$100002) -> 1026 | E5: 0.1768355739
C6: 4 Person | D6: =SUM(Data!EF$3:$EF$100002) -> 649 | E6: 0.11185798
C7: 5 Person | D7: =SUM(Data!EG$3:$EG$100002) -> 261 | E7: 0.04498448811
C8: 6 Person | D8: =SUM(Data!EH$3:$EH$100002) -> 107 | E8: 0.01844191658
C9: 7+ Person | D9: =SUM(Data!EI$3:$EI$100002) -> 81 | E9: 0.01396070321
C10: Total Renter Households | D10: =SUM(D3:D9) -> 5802 | E10: =SUM(E3:E9) -> 1
C11: Total Unique Tracts | D11: =COUNTA(Data!B3:B100000) -> 11

Sheet Income Population Female
A1: ="Female Income Population Distribution for "& Data!L1 -> Female Income Population Distribution for addresstotract
D2: Number | E2: Percent
C3: <10K* | D3: =SUM(Data!BN$3:$BN$100002) -> 1620 | E3: =D3/($D$11+0.000000001) -> 0.1957940537
C4: 10 to 19K | D4: =SUM(Data!BO$3:$BO$100002) -> 1582 | E4: =D4/($D$11+0.000000001) -> 0.1912013536
C5: 20 to 29K | D5: =SUM(Data!BP$3:$BP$100002) -> 1673 | E5: 0.2021996616
C6: 30 to 39K | D6: =SUM(Data!BQ$3:$BQ$100002) -> 1262 | E6: 0.152525985
C7: 40 to 49K | D7: =SUM(Data!BR$3:$BR$100002) -> 680 | E7: 0.08218515833
C8: 50 to 74K | D8: =SUM(Data!BS$3:$BS$100002) -> 930 | E8: 0.1124002901
C9: 75 to 99K | D9: =SUM(Data!BT$3:$BT$100002) -> 348 | E9: 0.04205946338
C10: >100K | D10: =SUM(Data!BU$3:$BU$100002) -> 179 | E10: 0.02163403432
C11: Total | D11: =SUM(D3:D10) -> 8274 | E11: =SUM(E3:E10) -> 1
C12: Total Unique Tracts | D12: =COUNTA(Data!B3:B100000) -> 11
C13: Median Female Income | D13: =SUMPRODUCT(Data!$F$3:$F$100002,Data!$BM$3:$BM$100002*($BM$3:$BM$99980<>"0"))/SUMIF(Data!$BM$3:$BM$100002,"<>0",Data!$F$3:$F$100002) -> 

Sheet Income Population Male
A1: ="Male Income Population Distribution for "& Data!L1 -> Male Income Population Distribution for addresstotract
D2: Number | E2: Percent
C3: <10K* | D3: =SUM(Data!BX$3:$BX$100002) -> 1197 | E3: =D3/($D$11+0.000000001) -> 0.1359146134
C4: 10 to 19K | D4: =SUM(Data!BY$3:$BY$100002) -> 1296 | E4: =D4/($D$11+0.000000001) -> 0.1471556716
C5: 20 to 29K | D5: =SUM(Data!BZ$3:$BZ$100002) -> 1080 | E5: 0.1226297264
C6: 30 to 39K | D6: =SUM(Data!CA$3:$CA$100002) -> 1224 | E6: 0.1389803565
C7: 40 to 49K | D7: =SUM(Data!CB$3:$CB$100002) -> 1196 | E7: 0.1358010673
C8: 50 to 74K | D8: =SUM(Data!CC$3:$CC$100002) -> 1476 | E8: 0.1675939594
C9: 75 to 99K | D9: =SUM(Data!CD$3:$CD$100002) -> 806 | E9: 0.09151811059
C10: >100K | D10: =SUM(Data!CE$3:$CE$100002) -> 532 | E10: 0.06040649483
C11: Total | D11: =SUM(D3:D10) -> 8807 | E11: =SUM(E3:E10) -> 1
C12: Total Unique Tracts | D12: =COUNTA(Data!B3:B100000) -> 11
C13: Median Male Income | D13: =SUMPRODUCT(Data!$F$3:$F$100002,Data!$BW$3:$BW$100002*($BW$3:$BW$99980<>"0"))/SUMIF(Data!$BW$3:$BW$100002,"<>0",Data!$F$3:$F$100002) -> 

Sheet Marital Status Female
A1: ="Female Marital Status for "& Data!L1 -> Female Marital Status for addresstotract
D2: Number | E2: Percent
C3: Never Married | D3: =SUM(Data!FG$3:$FG$100002) -> 4576 | E3: =D3/($D$8+0.000000001) -> 0.2891261768
C4: Married Spouse Present | D4: =SUM(Data!FH$3:$FH$100002) -> 5916 | E4: =D4/($D$8+0.000000001) -> 0.3737916219
C5: Married Spouse Absent | D5: =SUM(Data!FI$3:$FI$100002) -> 749 | E5: =D5/($D$8+0.000000001) -> 0.04732419284
C6: Divorced | D6: =SUM(Data!FJ$3:$FJ$100002) -> 2251 | E6: =D6/($D$8+0.000000001) -> 0.1422253112
C7: Widowed | D7: =SUM(Data!FK$3:$FK$100002) -> 2335 | E7: =D7/($D$8+0.000000001) -> 0.1475326973
C8: Females (15 and older) | D8: =SUM(D3:D7) -> 15827 | E8: =SUM(E3:E7) -> 1

Sheet Marital Status Male
A1: ="Male Marital Status for "& Data!L1 -> Male Marital Status for addresstotract
D2: Number | E2: Percent
C3: Never Married | D3: =SUM(Data!FM$3:$FM$100002) -> 4579 | E3: =D3/($D$8+0.000000001) -> 0.3249822569
C4: Married Spouse Present | D4: =SUM(Data!FN$3:$FN$100002) -> 6103 | E4: =D4/($D$8+0.000000001) -> 0.4331440738
C5: Married Spouse Absent | D5: =SUM(Data!FO$3:$FO$100002) -> 844 | E5: =D5/($D$8+0.000000001) -> 0.05990063875
C6: Divorced | D6: =SUM(Data!FP$3:$FP$100002) -> 2027 | E6: =D6/($D$8+0.000000001) -> 0.1438608943
C7: Widowed | D7: =SUM(Data!FQ$3:$FQ$100002) -> 537 | E7: =D7/($D$8+0.000000001) -> 0.03811213627
C8: Females (15 and older) | D8: =SUM(D3:D7) -> 14090 | E8: =SUM(E3:E7) -> 1

Sheet School Enrollment Female
A1: ="Female School Enrollment Distribution for "& Data!L1 -> Female School Enrollment Distribution for addresstotract
D2: Number | E2: Percent
C3: Preschool | D3: =SUM(Data!GU$3:$GU$100002) -> 117 | E3: =D3/($D$11+0.000000001) -> 0.006425041186
C4: Kindergarten | D4: =SUM(Data!GV$3:$GV$100002) -> 247 | E4: =D4/($D$11+0.000000001) -> 0.01356397584
C5: Grades 1 to 4 | D5: =SUM(Data!GW$3:$GW$100002) -> 840 | E5: 0.04612850082
C6: Grades 5 to 8 | D6: =SUM(Data!GX$3:$GX$100002) -> 762 | E6: 0.04184514003
C7: Grades 9 to 12 | D7: =SUM(Data!GY$3:$GY$100002) -> 760 | E7: 0.04173531027
C8: College | D8: =SUM(Data!GZ$3:$GZ$100002) -> 638 | E8: 0.03503569467
C9: Grad School | D9: =SUM(Data!HA$3:$HA$100002) -> 219 | E9: 0.01202635914
C10: Not Enrolled | D10: =SUM(Data!HB$3:$HB$100002) -> 14627 | E10: 0.803239978
C11: Total | D11: =SUM(D3:D10) -> 18210 | E11: =SUM(E3:E10) -> 1

Sheet School Enrollment Male
A1: ="Male School Enrollment Distribution for "& Data!L1 -> Male School Enrollment Distribution for addresstotract
D2: Number | E2: Percent
C3: Preschool | D3: =SUM(Data!HC$3:$HC$100002) -> 101 | E3: =D3/($D$11+0.000000001) -> 0.00605842481
C4: Kindergarten | D4: =SUM(Data!HD$3:$HD$100002) -> 255 | E4: =D4/($D$11+0.000000001) -> 0.01529602303
C5: Grades 1 to 4 | D5: =SUM(Data!HE$3:$HE$100002) -> 1057 | E5: 0.06340351509
C6: Grades 5 to 8 | D6: =SUM(Data!HF$3:$HF$100002) -> 919 | E6: 0.05512566733
C7: Grades 9 to 12 | D7: =SUM(Data!HG$3:$HG$100002) -> 801 | E7: 0.04804750765
C8: College | D8: =SUM(Data!HH$3:$HH$100002) -> 390 | E8: 0.02339391758
C9: Grad School | D9: =SUM(Data!HI$3:$HI$100002) -> 160 | E9: 0.009597504649
C10: Not Enrolled | D10: =SUM(Data!HJ$3:$HJ$100002) -> 12988 | E10: 0.7790774399
C11: Total | D11: =SUM(D3:D10) -> 16671 | E11: =SUM(E3:E10) -> 1

Sheet Tract Housing
A1: ="House Value Distribution for "& Data!L1 -> House Value Distribution for addresstotract
D2: Number | E2: Percent
C3: 0-100K* | D3: =SUMIFS(Data!$F$3:$F$100000,Data!$EO$3:$EO$100000,"<=100000")+SUMIFS(Data!$F$3:$F$100000,Data!$EO$3:$EO$100000,"") -> 4 | E3: =D3/($D$9+0.000000001) -> 0.3636363636
C4: >100K to 150K | D4: =SUMIFS(Data!$F$3:$F$100000,Data!$EO$3:$EO$100000,"<=150000",Data!$EO$3:$EO$100000,">100000") -> 6 | E4: =D4/($D$9+0.000000001) -> 0.5454545454
C5: >150K to 250K | D5: =SUMIFS(Data!$F$3:$F$100000,Data!$EO$3:$EO$100000,"<=250000",Data!$EO$3:$EO$100000,">150000") -> 1 | E5: 0.0909090909
C6: >250K-500K | D6: =SUMIFS(Data!$F$3:$F$100000,Data!$EO$3:$EO$100000,"<=500000",Data!$EO$3:$EO$100000,">250000") -> 0 | E6: 0
C7: >500K - 750K | D7: =SUMIFS(Data!$F$3:$F$100000,Data!$EO$3:$EO$100000,"<=750000",Data!$EO$3:$EO$100000,">500000") -> 0 | E7: 0
C8: >750K | D8: =SUMIFS(Data!$F$3:$F$100000,Data!$EO$3:$EO$100000,">750000") -> 0 | E8: 0
C9: Total Tracts | D9: =SUM(D3:D8) -> 11 | E9: =SUM(E3:E8) -> 0.9999999999
C10: Total Unique Tracts | D10: =COUNTA(Data!B3:B100000) -> 11
C11: *May include tracts with no data

Sheet Definitions
A1: CDXStreamer Census Tract Data Definitions
B2: 1 | C2: Tract Number | D2: Tract identification | G2: =MID(B2,8,1000) ->  | H2: =TRIM(G2) -> 
B3: =B2+1 -> 2 | C3: Census Tract | D3: Census tract FIPS code | H3: =TRIM(G3) -> 
B4: =B3+1 -> 3 | C4: Census Block | D4: Census Block FIPS code
B5: =B4+1 -> 4 | C5: County | D5: County Name
B6: =B5+1 -> 5 | C6: State | D6: 2 character state or territory designation
B7: 6 | C7: Age Median | D7: Median age for the population
B8: 7 | C8: Age 0 - 4 | D8: Population under 5 years
B9: 8 | C9: Age 5 - 9 | D9: Population between the ages 5 and 9
B10: 9 | C10: Age 10 - 14 | D10: Population between the ages 10 and 14
B11: 10 | C11: Age 15 - 17 | D11: Population between the ages 15 and 17
B12: 11 | C12: Age 18 - 20 | D12: Population between the ages 18 and 20
B13: 12 | C13: Age 21 - 24 | D13: Population between the ages 21 and 24
B14: 13 | C14: Age 25 - 34 | D14: Population between the ages 25 and 34
B15: 14 | C15: Age 35 - 44 | D15: Population between the ages 35 and 44
B16: 15 | C16: Age 45 - 54 | D16: Population between the ages 45 and 54
B17: 16 | C17: Age 55 - 61 | D17: Population between the ages 55 and 61
B18: 17 | C18: Age 62 - 64 | D18: Population between the ages 62 and 64
B19: 18 | C19: Age 65 - 74 | D19: Population between the ages 65 and 74
B20: 19 | C20: Age 75 - 84 | D20: Population between the ages 75 and 84
B21: 20 | C21: Age 85+ | D21: Population age 85 and over
B22: 21 | C22: Age Median Female | D22: Median age for the female population
B23: 22 | C23: Age Female 0 - 4 | D23: Female population under 5 years
B24: 23 | C24: Age Female 5 - 9 | D24: Female population between the ages 5 and 9
B25: 24 | C25: Age Female 10 - 14 | D25: Female population between the ages 10 and 14
B26: 25 | C26: Age Female 15 - 17 | D26: Female population between the ages 15 and 17
B27: 26 | C27: Age Female 18 - 20 | D27: Female population between the ages 18 and 20
B28: 27 | C28: Age Female 21 - 24 | D28: Female population between the ages 21 and 24
B29: 28 | C29: Age Female 25 - 34 | D29: Female population between the ages 25 and 34
B30: 29 | C30: Age Female 35 - 44 | D30: Female population between the ages 35 and 44
B31: 30 | C31: Age Female 45 - 54 | D31: Female population between the ages 45 and 54
B32: 31 | C32: Age Female 55 - 61 | D32: Female population between the ages 55 and 61
B33: 32 | C33: Age Female 62 - 64 | D33: Female population between the ages 62 and 64
B34: 33 | C34: Age Female 65 - 74 | D34: Female population between the ages 65 and 74
B35: 34 | C35: Age Female 75 - 84 | D35: Female population between the ages 75 and 84
B36: 35 | C36: Age Female 85+ | D36: Female population age 85 and over
B37: 36 | C37: Age Median Male | D37: Median age for the Male population
B38: 37 | C38: Age Male 0 - 4 | D38: Male population under 5 years
B39: 38 | C39: Age Male 5 - 9 | D39: Male population between the ages 5 and 9
B40: 39 | C40: Age Male 10 - 14 | D40: Male population between the ages 10 and 14
B41: 40 | C41: Age Male 15 - 17 | D41: Male population between the ages 15 and 17
B42: 41 | C42: Age Male 18 - 20 | D42: Male population between the ages 18 and 20
B43: 42 | C43: Age Male 21 - 24 | D43: Male population between the ages 21 and 24
B44: 43 | C44: Age Male 25 - 34 | D44: Male population between the ages 25 and 34
B45: 44 | C45: Age Male 35 - 44 | D45: Male population between the ages 35 and 44
B46: 45 | C46: Age Male 45 - 54 | D46: Male population between the ages 45 and 54
B47: 46 | C47: Age Male 55 - 61 | D47: Male population between the ages 55 and 61
B48: 47 | C48: Age Male 62 - 64 | D48: Male population between the ages 62 and 64
B49: 48 | C49: Age Male 65 - 74 | D49: Male population between the ages 65 and 74
B50: 49 | C50: Age Male 75 - 84 | D50: Male population between the ages 75 and 84
B51: 50 | C51: Age Male 85+ | D51: Male population age 85 and over
B52: 51 | C52: Earnings Population | D52: Population 16 years and over with earnings
B53: 52 | C53: Earnings Median | D53: Median earnings for the population 16 years and over with earnings
B54: 53 | C54: Earnings Less than 10K | D54: Population who made less than $10,000 for the population 16 years and over with earnings
B55: 54 | C55: Earnings 10-19K | D55: Population who made between $10,000 and $19,999 for the population 16 years and over with earnings
B56: 55 | C56: Earnings 20-29K | D56: Population who made between $20,000 and $29,999 for the population 16 years and over with earnings
B57: 56 | C57: Earnings 30-39K | D57: Population who made between $30,000 and $39,999 for the population 16 years and over with earnings
B58: 57 | C58: Earnings 40-49K | D58: Population who made between $40,000 and $49,999 for the population 16 years and over with earnings
B59: 58 | C59: Earnings 50-74K | D59: Population who made between $50,000 and $74,999 for the population 16 years and over with earnings
B60: 59 | C60: Earnings 75-99K | D60: Population who made between $75,000 and $99,999 for the population 16 years and over with earnings
B61: 60 | C61: Earnings 100K+ | D61: Population who made $100,000 and over for the population 16 years and over with earnings
B62: 61 | C62: Earnings Female Population | D62: Female population 16 years and over with earnings
B63: 62 | C63: Earnings Median Female | D63: Median earnings for the female population 16 years and over with earnings
B64: 63 | C64: Earnings Female Less than 10K | D64: Females who made less than $10,000 for the population 16 years and over with earnings
B65: 64 | C65: Earnings Female 10-19K | D65: Females who made between $10,000 and $19,999 for the population 16 years and over with earnings
B66: 65 | C66: Earnings Female 20-29K | D66: Females who made between $20,000 and $29,999 for the population 16 years and over with earnings
B67: 66 | C67: Earnings Female 30-39K | D67: Females who made between $30,000 and $39,999 for the population 16 years and over with earnings
B68: 67 | C68: Earnings Female 40-49K | D68: Females who made between $40,000 and $49,999 for the population 16 years and over with earnings | H68: =TRIM(G68) -> 
B69: =B68+1 -> 68 | C69: Earnings Female 50-74K | D69: Females who made between $50,000 and $74,999 for the population 16 years and over with earnings
B70: 69 | C70: Earnings Female 75-99K | D70: Females who made between $75,000 and $99,999 for the population 16 years and over with earnings
B71: 70 | C71: Earnings Female 100K+ | D71: Females who made $100,000 and over for the population 16 years and over with earnings
B72: 71 | C72: Earnings Male Population | D72: Male population 16 years and over with earnings
B73: 72 | C73: Earnings Median Male | D73: Median earnings for the male population 16 years and over with earnings
B74: 73 | C74: Earnings Male Less than 10K | D74: Males who made less than $10,000 for the population 16 years and over with earnings
B75: 74 | C75: Earnings Male 10-19K | D75: Males who made between $10,000 and $19,999 for the population 16 years and over with earnings
B76: 75 | C76: Earnings Male 20-29K | D76: Males who made between $20,000 and $29,999 for the population 16 years and over with earnings
B77: 76 | C77: Earnings Male 30-39K | D77: Males who made between $30,000 and $39,999 for the population 16 years and over with earnings
B78: 77 | C78: Earnings Male 40-49K | D78: Males who made between $40,000 and $49,999 for the population 16 years and over with earnings
B79: 78 | C79: Earnings Male 50-74K | D79: Males who made between $50,000 and $74,999 for the population 16 years and over with earnings
B80: 79 | C80: Earnings Male 75-99K | D80: Males who made between $75,000 and $99,999 for the population 16 years and over with earnings
B81: 80 | C81: Earnings Male 100K+ | D81: Males who made $100,000 and over for the population 16 years and over with earnings
B82: 81 | C82: Education Attain Population 25+ Years | D82: Total Population 25 years and over
B83: 82 | C83: Education Attain No Schooling | D83: Total who completed no schooling for the population 25 years and over
B84: 83 | C84: Education Attain Nursery to Grade 8 | D84: Total whose highest educational attainment was nursery to grade 8 for the population 25 years and over
B85: 84 | C85: Education Attain Some High School | D85: Total whose highest educational attainment was some high school for the population 25 years and over
B86: 85 | C86: Education Attain High School Grad | D86: Total whose highest educational attainment was graduation from high school or equivalency for the population 25 years and over
B87: 86 | C87: Education Attain Some College | D87: Total whose highest educational attainment was some college for the population 25 years and over
B88: 87 | C88: Education Attain Associate Degree | D88: Total whose highest educational attainment was an associate degree for the population 25 years and over
B89: 88 | C89: Education Attain Bachelors Degree | D89: Total whose highest educational attainment was a bachelors degree for the population 25 years and over
B90: 89 | C90: Education Attain Advanced Degree | D90: Total whose highest educational attainment was an advanced degree for the population 25 years and over
B91: 90 | C91: Education Attain Population Female 25+ Years | D91: Female Population 25 years and over
B92: 91 | C92: Education Attain Female No Schooling | D92: Females who completed no schooling for the population 25 years and over
B93: 92 | C93: Education Attain Female Nursery to Grade 8 | D93: Females whose highest educational attainment was nursery to grade 8 for the population 25 years and over
B94: 93 | C94: Education Attain Female Some High School | D94: Females whose highest educational attainment was some high school for the population 25 years and over
B95: 94 | C95: Education Attain Female High School Grad | D95: Females whose highest educational attainment was graduation from high school or equivalency for the population 25 years and over
B96: 95 | C96: Education Attain Female Some College | D96: Females whose highest educational attainment was some college for the population 25 years and over
B97: 96 | C97: Education Attain Female Associate Degree | D97: Females whose highest educational attainment was an associate degree for the population 25 years and over
B98: 97 | C98: Education Attain Female Bachelors Degree | D98: Females whose highest educational attainment was a bachelors degree for the population 25 years and over
B99: 98 | C99: Education Attain Female Advanced Degree | D99: Females whose highest educational attainment was an advanced degree for the population 25 years and over
B100: 99 | C100: Education Attain Population Male 25+ Years | D100: Male Population 25 years and over
B101: 100 | C101: Education Attain Male No Schooling | D101: Males who completed no schooling for the population 25 years and over
B102: 101 | C102: Education Attain Male Nursery to Grade 8 | D102: Males whose highest educational attainment was nursery to grade 8 for the population 25 years and over
B103: 102 | C103: Education Attain Male Some High School | D103: Males whose highest educational attainment was some high school for the population 25 years and over
B104: 103 | C104: Education Attain Male High School Grad | D104: Males whose highest educational attainment was graduation from high school or equivalency for the population 25 years and over
B105: 104 | C105: Education Attain Male Some College | D105: Males whose highest educational attainment was some college for the population 25 years and over
B106: 105 | C106: Education Attain Male Associate Degree | D106: Males whose highest educational attainment was an associate degree for the population 25 years and over
B107: 106 | C107: Education Attain Male Bachelors Degree | D107: Males whose highest educational attainment was a bachelors degree for the population 25 years and over
B108: 107 | C108: Education Attain Male Advanced Degree | D108: Males whose highest educational attainment was an advanced degree for the population 25 years and over
B109: 108 | C109: Households Total | D109: Total number of households
B110: 109 | C110: Household Income 0-24K | D110: Number of households with total income of less than $24,999
B111: 110 | C111: Household Income 25-49K | D111: Number of households with total income between $25,000 and $49,999
B112: 111 | C112: Household Income 50-74K | D112: Number of households with total income between $50,000 and $74,999
B113: 112 | C113: Household Income 75-99K | D113: Number of households with total income between $75,000 and $99,999
B114: 113 | C114: Household Income 100-149K | D114: Number of households with total income between $100,000 and $149,999
B115: 114 | C115: Household Income 150-199K | D115: Number of households with total income between $150,000 and $199,999
B116: 115 | C116: Household Income 200K+ | D116: Number of households with total income of $200,000 and over
B117: 116 | C117: Household Income Median | D117: Median income of all households
B118: 117 | C118: Household Income Median under 25 years | D118: Median household income where the householder is under 25 years
B119: 118 | C119: Household Income Median 25-44 years | D119: Median household income where the householder is between 25 and 44 years
B120: 119 | C120: Household Income Median 45-64 years | D120: Median household income where the householder is between 45 and 64 years
B121: 120 | C121: Household Income Median 65 years and over | D121: Median household income where the householder is 65 years and over
B122: 121 | C122: Households Owner-Occuppied | D122: Total number of owner-occupied housing units
B123: 122 | C123: Household Size Owner Occupied 1-Person | D123: For owner-occupied housing units, those with a 1-person household
B124: 123 | C124: Household Size Owner Occupied 2-Person | D124: For owner-occupied housing units, those with a 2-person household
B125: 124 | C125: Household Size Owner Occupied 3-Person | D125: For owner-occupied housing units, those with a 3-person household
B126: 125 | C126: Household Size Owner Occupied 4-Person | D126: For owner-occupied housing units, those with a 4-person household
B127: 126 | C127: Household Size Owner Occupied 5-Person | D127: For owner-occupied housing units, those with a 5-person household
B128: 127 | C128: Household Size Owner Occupied 6-Person | D128: For owner-occupied housing units, those with a 6-person household
B129: 128 | C129: Household Size Owner Occupied 7+ Person | D129: For owner-occupied housing units, those with a 7 and over -person household
B130: 129 | C130: Households Renter-Occupied | D130: Total number of renter-occupied housing units
B131: 130 | C131: Household Size Renter Occupied 1-Person | D131: For renter-occupied housing units, those with a 1-person household
B132: 131 | C132: Household Size Renter Occupied 2-Person | D132: For renter-occupied housing units, those with a 2-person household | H132: =TRIM(G132) -> 
B133: =B132+1 -> 132 | C133: Household Size Renter Occupied 3-Person | D133: For renter-occupied housing units, those with a 3-person household
B134: 133 | C134: Household Size Renter Occupied 4-Person | D134: For renter-occupied housing units, those with a 4-person household
B135: 134 | C135: Household Size Renter Occupied 5-Person | D135: For renter-occupied housing units, those with a 5-person household
B136: 135 | C136: Household Size Renter Occupied 6-Person | D136: For renter-occupied housing units, those with a 6-person household
B137: 136 | C137: Household Size Renter Occupied 7+ Person | D137: For renter-occupied housing units, those with a 7 and over -person household
B138: 137 | C138: Household Size Average | D138: Average number of people per housing unit
B139: 138 | C139: Household Size Average Owner-Occupied | D139: Average number of people in an owner-occupied housing unit
B140: 139 | C140: Household Size Average Renter-Occupied | D140: Average number of people in an renter-occupied housing unit
B141: 140 | C141: Housing Units with Mortgage | D141: Owner-occupied housing units with a mortgage
B142: 141 | C142: Housing Units without Mortgage | D142: Owner-occupied housing units without a mortgage
B143: 142 | C143: Housing Value Median | D143: Median value of owner-occupied housing units
B144: 143 | C144: Housing Value Less than 50K | D144: Owner-occupied housing units with a value of less than $50,000
B145: 144 | C145: Housing Value 50-99K | D145: Owner-occupied housing units with a value between $50,000 and $99,999
B146: 145 | C146: Housing Value 100-149K | D146: Owner-occupied housing units with a value between $100,000 and $149,999
B147: 146 | C147: Housing Value 150-199K | D147: Owner-occupied housing units with a value between $150,000 and $199,999
B148: 147 | C148: Housing Value 200-299K | D148: Owner-occupied housing units with a value between $200,000 and $299,999
B149: 148 | C149: Housing Value 300-399K | D149: Owner-occupied housing units with a value between $300,000 and $399,999
B150: 149 | C150: Housing Value 400-499K | D150: Owner-occupied housing units with a value between $400,000 and $499,999
B151: 150 | C151: Housing Value 500-749K | D151: Owner-occupied housing units with a value between $500,000 and $749,999
B152: 151 | C152: Housing Value 750-999K | D152: Owner-occupied housing units with a value between $750,000 and $999,999
B153: 152 | C153: Housing Value 1 MM+ | D153: Owner-occupied housing units with a value of $1,000,000 and over
B154: 153 | C154: Marital Status Population 15+ Years | D154: Total population 15 years and over
B155: 154 | C155: Marital Status Never Married | D155: Total who never married, for the population 15 years and over
B156: 155 | C156: Marital Status Married/Spouse Present | D156: Total who are married with spouse present, for the population 15 years and over
B157: 156 | C157: Marital Status Married/Spouse Absent | D157: Total who are married with spouse absent, for the population 15 years and over
B158: 157 | C158: Marital Status Divorced | D158: Total who are divorced, for the population 15 years and over
B159: 158 | C159: Marital Status Widowed | D159: Total who are widowed, for the population 15 years and over
B160: 159 | C160: Marital Status Population Female 15+ Years | D160: Female population 15 years and over
B161: 160 | C161: Marital Status Female Never Married | D161: Females who never married, for the population 15 years and over
B162: 161 | C162: Marital Status Female Married/Spouse Present | D162: Females who are married with spouse present, for the population 15 years and over
B163: 162 | C163: Marital Status Female Married/Spouse Absent | D163: Females who are married with spouse absent, for the population 15 years and over
B164: 163 | C164: Marital Status Female Divorced | D164: Females who are divorced, for the population 15 years and over
B165: 164 | C165: Marital Status Female Widowed | D165: Females who are widowed, for the population 15 years and over
B166: 165 | C166: Marital Status Population Male 15+ Years | D166: Male population 15 years and over
B167: 166 | C167: Marital Status Male Never Married | D167: Males who never married, for the population 15 years and over
B168: 167 | C168: Marital Status Male Married/Spouse Present | D168: Males who are married with spouse present, for the population 15 years and over
B169: 168 | C169: Marital Status Male Married/Spouse Absent | D169: Males who are married with spouse absent, for the population 15 years and over
B170: 169 | C170: Marital Status Male Divorced | D170: Males who are divorced, for the population 15 years and over
B171: 170 | C171: Marital Status Male Widowed | D171: Males who are widowed, for the population 15 years and over
B172: 171 | C172: Population | D172: Total Population
B173: 172 | C173: Population Female | D173: Female population
B174: 173 | C174: Population Male | D174: Male population
B175: 174 | C175: Population Hispanic | D175: Hispanic population
B176: 175 | C176: Population Non-Hispanic | D176: Non-Hispanic population
B177: 176 | C177: Race Asian | D177: Asian alone population
B178: 177 | C178: Race Black | D178: Black or African American alone population
B179: 178 | C179: Race Hawaiian | D179: Native Hawaiian and Other Pacific Islander alone population
B180: 179 | C180: Race Indian | D180: American Indian and Alaska Native alone population
B181: 180 | C181: Race Other | D181: Some other race alone population
B182: 181 | C182: Race Two or more | D182: Two or more races population
B183: 182 | C183: Race White | D183: White alone population
B184: 183 | C184: Rent Gross Cash Less than $250 | D184: For renter-occupied housing units, those with cash rent less than $250
B185: 184 | C185: Rent Gross Cash $250-499 | D185: For renter-occupied housing units, those with cash rent between $250 and $499
B186: 185 | C186: Rent Gross Cash $500-749 | D186: For renter-occupied housing units, those with cash rent between $500 and $749
B187: 186 | C187: Rent Gross Cash $750-999 | D187: For renter-occupied housing units, those with cash rent between $750 and $999
B188: 187 | C188: Rent Gross Cash $1000-1249 | D188: For renter-occupied housing units, those with cash rent between $1000 and $1249
B189: 188 | C189: Rent GrossCash $1250-1499 | D189: For renter-occupied housing units, those with cash rent between $1250 and $1499
B190: 189 | C190: Rent Gross Cash $1500-1999 | D190: For renter-occupied housing units, those with cash rent between $1500 and $1999
B191: 190 | C191: Rent Gross Cash $2000+ | D191: For renter-occupied housing units, those with cash rent $2000 or more
B192: 191 | C192: Rent Gross No Cash | D192: For renter-occupied housing units, those with no cash rent
B193: 192 | C193: School Enroll Preschool | D193: Total enrolled in nursery school (public and private), for the population 3 years and over
B194: 193 | C194: School Enroll Kindergarten | D194: Total enrolled in kindergarten (public and private), for the population 3 years and over
B195: 194 | C195: School Enroll Grades 1-4 | D195: Total enrolled in grades 1 through 4 (public and private), for the population 3 years and over | H195: =TRIM(G195) -> 
B196: 195 | C196: School Enroll Grades 5-8 | D196: Total enrolled in grades 5 through 8 (public and private), for the population 3 years and over
B197: =B196+1 -> 196 | C197: School Enroll Grades 9-12 | D197: Total enrolled in grades 9 through 12 (public and private), for the population 3 years and over
B198: 197 | C198: School Enroll College | D198: Total enrolled in college (public and private), for the population 3 years and over
B199: 198 | C199: School Enroll Grad School | D199: Total enrolled in graduate school (public and private), for the population 3 years and over
B200: 199 | C200: School Enroll Not Enrolled | D200: Total not enrolled in school (public and private), for the population 3 years and over
... 16 more rows
